Workbook

Sheet Building Consent Fee Summary
A3: Consent Fee Summary (Building Consent)
A5: Consent Reference Number: | B5: BCN/2017/2013 | C5: Consent Address: | D5: 80 Byron Street | F5: B103 LU: 01.07.16 LR: 01.07.16 v20
A7: Accept:
A8: Type: | B8: Comments: | C8: Officer Name: | D8: Date: | E8: Hours Worked: | F8: Rate Per Hour: | G8: Fee:
A9: Lodging | C9: Bruce Lyon | D9: 2017-03-23 | E9: 0.25 | F9: =IF(C9=""," ",SUMPRODUCT((AA9=OFFSET('Role Fee Structure'!$C$4,0,0,'Role Fee Structure'!$AB$5))*(X9=OFFSET('Role Fee Structure'!$F$2,0,0,1,'Role Fee Structure'!$AB$4))*(D9>=OFFSET('Role Fee Structure'!$D$4,0,0,'Role Fee Structure'!$AB$5))*(D9<=OFFSET('Role Fee Structure'!$E$4,0,0,'Role Fee Structure'!$AB$5))*(OFFSET('Role Fee Structure'!$F$4,0,0,'Role Fee Structure'!$AB$5,'Role Fee Structure'!$AB$4)))) -> 115 | G9: =IF(C9="", " ",$E9*$F9) -> 28.75 | L9: =$A$7 -> Accept: | W9: Financial Year | X9: =TEXT(IF(MONTH(D9)>6,YEAR(D9)+1,YEAR(D9)),"####") -> 2017 | Z9: Role Type | AA9: =SUMPRODUCT((C9=OFFSET('Names of Officers'!$B$4,0,0,'Names of Officers'!$AB$6))*(D9>=OFFSET('Names of Officers'!$D$4,0,0,'Names of Officers'!$AB$6))*(D9<=OFFSET('Names of Officers'!$E$4,0,0,'Names of Officers'!$AB$6))*(OFFSET('Names of Officers'!$F$4,0,0,'Names of Officers'!$AB$6))) -> 59
A10: Additional Information 1 | B10: ADD/2017/3795 | C10: Rebecca Gourlay | D10: 2017-04-05 | E10: 0.17 | F10: =IF(C10=""," ",SUMPRODUCT((AA10=OFFSET('Role Fee Structure'!$C$4,0,0,'Role Fee Structure'!$AB$5))*(X10=OFFSET('Role Fee Structure'!$F$2,0,0,1,'Role Fee Structure'!$AB$4))*(D10>=OFFSET('Role Fee Structure'!$D$4,0,0,'Role Fee Structure'!$AB$5))*(D10<=OFFSET('Role Fee Structure'!$E$4,0,0,'Role Fee Structure'!$AB$5))*(OFFSET('Role Fee Structure'!$F$4,0,0,'Role Fee Structure'!$AB$5,'Role Fee Structure'!$AB$4)))) -> 115 | G10: =IF(C10="", " ",$E10*$F10) -> 19.55 | L10: =$A$7 -> Accept: | W10: Financial Year | X10: =TEXT(IF(MONTH(D10)>6,YEAR(D10)+1,YEAR(D10)),"####") -> 2017 | Z10: Role Type | AA10: =SUMPRODUCT((C10=OFFSET('Names of Officers'!$B$4,0,0,'Names of Officers'!$AB$6))*(D10>=OFFSET('Names of Officers'!$D$4,0,0,'Names of Officers'!$AB$6))*(D10<=OFFSET('Names of Officers'!$E$4,0,0,'Names of Officers'!$AB$6))*(OFFSET('Names of Officers'!$F$4,0,0,'Names of Officers'!$AB$6))) -> 59
A11: Additional Information 2 | B11: ADD/2017/8090 8093 | C11: Allen Pranesh | D11: 2017-07-12 | E11: 0.17 | F11: =IF(C11=""," ",SUMPRODUCT((AA11=OFFSET('Role Fee Structure'!$C$4,0,0,'Role Fee Structure'!$AB$5))*(X11=OFFSET('Role Fee Structure'!$F$2,0,0,1,'Role Fee Structure'!$AB$4))*(D11>=OFFSET('Role Fee Structure'!$D$4,0,0,'Role Fee Structure'!$AB$5))*(D11<=OFFSET('Role Fee Structure'!$E$4,0,0,'Role Fee Structure'!$AB$5))*(OFFSET('Role Fee Structure'!$F$4,0,0,'Role Fee Structure'!$AB$5,'Role Fee Structure'!$AB$4)))) -> 120 | G11: =IF(C11="", " ",$E11*$F11) -> 20.4 | L11: =$A$7 -> Accept: | W11: Financial Year | X11: =TEXT(IF(MONTH(D11)>6,YEAR(D11)+1,YEAR(D11)),"####") -> 2018 | Z11: Role Type | AA11: =SUMPRODUCT((C11=OFFSET('Names of Officers'!$B$4,0,0,'Names of Officers'!$AB$6))*(D11>=OFFSET('Names of Officers'!$D$4,0,0,'Names of Officers'!$AB$6))*(D11<=OFFSET('Names of Officers'!$E$4,0,0,'Names of Officers'!$AB$6))*(OFFSET('Names of Officers'!$F$4,0,0,'Names of Officers'!$AB$6))) -> 59
A12: Additional Information 3 | B12: ADD/2017/8865 | C12: Jo Rayne | D12: 2017-07-31 | E12: 0.17 | F12: =IF(C12=""," ",SUMPRODUCT((AA12=OFFSET('Role Fee Structure'!$C$4,0,0,'Role Fee Structure'!$AB$5))*(X12=OFFSET('Role Fee Structure'!$F$2,0,0,1,'Role Fee Structure'!$AB$4))*(D12>=OFFSET('Role Fee Structure'!$D$4,0,0,'Role Fee Structure'!$AB$5))*(D12<=OFFSET('Role Fee Structure'!$E$4,0,0,'Role Fee Structure'!$AB$5))*(OFFSET('Role Fee Structure'!$F$4,0,0,'Role Fee Structure'!$AB$5,'Role Fee Structure'!$AB$4)))) -> 120 | G12: =IF(C12="", " ",$E12*$F12) -> 20.4 | L12: =$A$7 -> Accept: | W12: Financial Year | X12: =TEXT(IF(MONTH(D12)>6,YEAR(D12)+1,YEAR(D12)),"####") -> 2018 | Z12: Role Type | AA12: =SUMPRODUCT((C12=OFFSET('Names of Officers'!$B$4,0,0,'Names of Officers'!$AB$6))*(D12>=OFFSET('Names of Officers'!$D$4,0,0,'Names of Officers'!$AB$6))*(D12<=OFFSET('Names of Officers'!$E$4,0,0,'Names of Officers'!$AB$6))*(OFFSET('Names of Officers'!$F$4,0,0,'Names of Officers'!$AB$6))) -> 59
A13: Additional Information 4 | B13: ADD/2017/9070 | C13: Jo Rayne | D13: 2017-08-02 | E13: 0.17 | F13: =IF(C13=""," ",SUMPRODUCT((AA13=OFFSET('Role Fee Structure'!$C$4,0,0,'Role Fee Structure'!$AB$5))*(X13=OFFSET('Role Fee Structure'!$F$2,0,0,1,'Role Fee Structure'!$AB$4))*(D13>=OFFSET('Role Fee Structure'!$D$4,0,0,'Role Fee Structure'!$AB$5))*(D13<=OFFSET('Role Fee Structure'!$E$4,0,0,'Role Fee Structure'!$AB$5))*(OFFSET('Role Fee Structure'!$F$4,0,0,'Role Fee Structure'!$AB$5,'Role Fee Structure'!$AB$4)))) -> 120 | G13: =IF(C13="", " ",$E13*$F13) -> 20.4 | L13: =$A$7 -> Accept: | W13: Financial Year | X13: =TEXT(IF(MONTH(D13)>6,YEAR(D13)+1,YEAR(D13)),"####") -> 2018 | Z13: Role Type | AA13: =SUMPRODUCT((C13=OFFSET('Names of Officers'!$B$4,0,0,'Names of Officers'!$AB$6))*(D13>=OFFSET('Names of Officers'!$D$4,0,0,'Names of Officers'!$AB$6))*(D13<=OFFSET('Names of Officers'!$E$4,0,0,'Names of Officers'!$AB$6))*(OFFSET('Names of Officers'!$F$4,0,0,'Names of Officers'!$AB$6))) -> 59
F14: Total Fee: | G14: =SUMIF($L:$L,$A$7,$G:$G) -> 109.5
A16: PIM/Development Check:
A17: Type: | B17: Comments: | C17: Officer Name: | D17: Date: | E17: Hours Worked: | F17: Rate Per Hour: | G17: Fee:
A18: Building (Hazards) Check | C18: Ed Nystad | D18: 2017-03-23 | E18: 0.33 | F18: =IF(C18=""," ",SUMPRODUCT((AA18=OFFSET('Role Fee Structure'!$C$3,0,0,'Role Fee Structure'!$AB$5))*(X18=OFFSET('Role Fee Structure'!$F$2,0,0,1,'Role Fee Structure'!$AB$4))*(D18>=OFFSET('Role Fee Structure'!$D$3,0,0,'Role Fee Structure'!$AB$5))*(D18<=OFFSET('Role Fee Structure'!$E$3,0,0,'Role Fee Structure'!$AB$5))*(OFFSET('Role Fee Structure'!$F$3,0,0,'Role Fee Structure'!$AB$5,'Role Fee Structure'!$AB$4)))) -> 273 | G18: =IF(C18="", " ",$E18*$F18) -> 90.09 | L18: =$A$16 -> PIM/Development Check: | W18: Financial Year | X18: =TEXT(IF(MONTH(D18)>6,YEAR(D18)+1,YEAR(D18)),"####") -> 2017 | Z18: Role Type | AA18: =SUMPRODUCT((C18=OFFSET('Names of Officers'!$B$4,0,0,'Names of Officers'!$AB$6))*(D18>=OFFSET('Names of Officers'!$D$4,0,0,'Names of Officers'!$AB$6))*(D18<=OFFSET('Names of Officers'!$E$4,0,0,'Names of Officers'!$AB$6))*(OFFSET('Names of Officers'!$F$4,0,0,'Names of Officers'!$AB$6))) -> 5
A19: Drainage Report | C19: Heath Wells | D19: 2017-03-24 | E19: 0.17 | F19: =IF(C19=""," ",SUMPRODUCT((AA19=OFFSET('Role Fee Structure'!$C$3,0,0,'Role Fee Structure'!$AB$5))*(X19=OFFSET('Role Fee Structure'!$F$2,0,0,1,'Role Fee Structure'!$AB$4))*(D19>=OFFSET('Role Fee Structure'!$D$3,0,0,'Role Fee Structure'!$AB$5))*(D19<=OFFSET('Role Fee Structure'!$E$3,0,0,'Role Fee Structure'!$AB$5))*(OFFSET('Role Fee Structure'!$F$3,0,0,'Role Fee Structure'!$AB$5,'Role Fee Structure'!$AB$4)))) -> 273 | G19: =IF(C19="", " ",$E19*$F19) -> 46.41 | L19: PIM/Development Check: | W19: Financial Year | X19: =TEXT(IF(MONTH(D19)>6,YEAR(D19)+1,YEAR(D19)),"####") -> 2017 | Z19: Role Type | AA19: =SUMPRODUCT((C19=OFFSET('Names of Officers'!$B$4,0,0,'Names of Officers'!$AB$6))*(D19>=OFFSET('Names of Officers'!$D$4,0,0,'Names of Officers'!$AB$6))*(D19<=OFFSET('Names of Officers'!$E$4,0,0,'Names of Officers'!$AB$6))*(OFFSET('Names of Officers'!$F$4,0,0,'Names of Officers'!$AB$6))) -> 5
A20: PIM Administration | C20: Lynette Daniell | D20: 2017-04-04 | E20: 0.25 | F20: =IF(C20=""," ",SUMPRODUCT((AA20=OFFSET('Role Fee Structure'!$C$3,0,0,'Role Fee Structure'!$AB$5))*(X20=OFFSET('Role Fee Structure'!$F$2,0,0,1,'Role Fee Structure'!$AB$4))*(D20>=OFFSET('Role Fee Structure'!$D$3,0,0,'Role Fee Structure'!$AB$5))*(D20<=OFFSET('Role Fee Structure'!$E$3,0,0,'Role Fee Structure'!$AB$5))*(OFFSET('Role Fee Structure'!$F$3,0,0,'Role Fee Structure'!$AB$5,'Role Fee Structure'!$AB$4)))) -> 115 | G20: =IF(C20="", " ",$E20*$F20) -> 28.75 | L20: PIM/Development Check: | W20: Financial Year | X20: =TEXT(IF(MONTH(D20)>6,YEAR(D20)+1,YEAR(D20)),"####") -> 2017 | Z20: Role Type | AA20: =SUMPRODUCT((C20=OFFSET('Names of Officers'!$B$4,0,0,'Names of Officers'!$AB$6))*(D20>=OFFSET('Names of Officers'!$D$4,0,0,'Names of Officers'!$AB$6))*(D20<=OFFSET('Names of Officers'!$E$4,0,0,'Names of Officers'!$AB$6))*(OFFSET('Names of Officers'!$F$4,0,0,'Names of Officers'!$AB$6))) -> 59
A21: Planning Check | C21: Peter Warriner | D21: 2017-04-03 | E21: 0.75 | F21: =IF(C21=""," ",SUMPRODUCT((AA21=OFFSET('Role Fee Structure'!$C$3,0,0,'Role Fee Structure'!$AB$5))*(X21=OFFSET('Role Fee Structure'!$F$2,0,0,1,'Role Fee Structure'!$AB$4))*(D21>=OFFSET('Role Fee Structure'!$D$3,0,0,'Role Fee Structure'!$AB$5))*(D21<=OFFSET('Role Fee Structure'!$E$3,0,0,'Role Fee Structure'!$AB$5))*(OFFSET('Role Fee Structure'!$F$3,0,0,'Role Fee Structure'!$AB$5,'Role Fee Structure'!$AB$4)))) -> 180 | G21: =IF(C21="", " ",$E21*$F21) -> 135 | L21: PIM/Development Check: | W21: Financial Year | X21: =TEXT(IF(MONTH(D21)>6,YEAR(D21)+1,YEAR(D21)),"####") -> 2017 | Z21: Role Type | AA21: =SUMPRODUCT((C21=OFFSET('Names of Officers'!$B$4,0,0,'Names of Officers'!$AB$6))*(D21>=OFFSET('Names of Officers'!$D$4,0,0,'Names of Officers'!$AB$6))*(D21<=OFFSET('Names of Officers'!$E$4,0,0,'Names of Officers'!$AB$6))*(OFFSET('Names of Officers'!$F$4,0,0,'Names of Officers'!$AB$6))) -> 37
A22: PIM Coordinator Sign-off | F22: Applicable | G22: 30 | L22: PIM/Development Check:
F23: Total Fee: | G23: =SUMIF($L:$L,$A$16,$G:$G) -> 330.25
A25: Pre-acceptance Technical Review:
A26: Type: | B26: Comments: | C26: Officer Name: | D26: Date: | E26: Hours Worked: | F26: Rate Per Hour: | G26: Fee:
A27: Pre-acceptance technical review | C27: Banny Singh | D27: 2017-03-23 | E27: 1 | F27: =IF(C27=""," ",SUMPRODUCT((AA27=OFFSET('Role Fee Structure'!$C$3,0,0,'Role Fee Structure'!$AB$5))*(X27=OFFSET('Role Fee Structure'!$F$2,0,0,1,'Role Fee Structure'!$AB$4))*(D27>=OFFSET('Role Fee Structure'!$D$3,0,0,'Role Fee Structure'!$AB$5))*(D27<=OFFSET('Role Fee Structure'!$E$3,0,0,'Role Fee Structure'!$AB$5))*(OFFSET('Role Fee Structure'!$F$3,0,0,'Role Fee Structure'!$AB$5,'Role Fee Structure'!$AB$4)))) -> 173 | G27: =IF(C27="", " ",$E27*$F27) -> 173 | L27: =$A$25 -> Pre-acceptance Technical Review: | W27: Financial Year | X27: =TEXT(IF(MONTH(D27)>6,YEAR(D27)+1,YEAR(D27)),"####") -> 2017 | Z27: Role Type | AA27: =SUMPRODUCT((C27=OFFSET('Names of Officers'!$B$4,0,0,'Names of Officers'!$AB$6))*(D27>=OFFSET('Names of Officers'!$D$4,0,0,'Names of Officers'!$AB$6))*(D27<=OFFSET('Names of Officers'!$E$4,0,0,'Names of Officers'!$AB$6))*(OFFSET('Names of Officers'!$F$4,0,0,'Names of Officers'!$AB$6))) -> 1
F28: Total Fee: | G28: =SUMIF($L:$L,$A$25,$G:$G) -> 173
A30: Process and Grant:
A31: Type: | B31: Comments: | C31: Officer Name: | D31: Date: | E31: Hours Worked: | F31: Rate Per Hour: | G31: Fee:
A32: Processing | B32: Civil | C32: Donnick Mugusto | D32: 2017-04-06 | E32: 1 | F32: =IF(C32=""," ",SUMPRODUCT((AA32=OFFSET('Role Fee Structure'!$C$3,0,0,'Role Fee Structure'!$AB$5))*(X32=OFFSET('Role Fee Structure'!$F$2,0,0,1,'Role Fee Structure'!$AB$4))*(D32>=OFFSET('Role Fee Structure'!$D$3,0,0,'Role Fee Structure'!$AB$5))*(D32<=OFFSET('Role Fee Structure'!$E$3,0,0,'Role Fee Structure'!$AB$5))*(OFFSET('Role Fee Structure'!$F$3,0,0,'Role Fee Structure'!$AB$5,'Role Fee Structure'!$AB$4)))) -> 235 | G32: =IF(C32="", " ",$E32*$F32) -> 235 | L32: =$A$30 -> Process and Grant: | W32: Financial Year | X32: =TEXT(IF(MONTH(D32)>6,YEAR(D32)+1,YEAR(D32)),"####") -> 2017 | Z32: Role Type | AA32: =SUMPRODUCT((C32=OFFSET('Names of Officers'!$B$4,0,0,'Names of Officers'!$AB$6))*(D32>=OFFSET('Names of Officers'!$D$4,0,0,'Names of Officers'!$AB$6))*(D32<=OFFSET('Names of Officers'!$E$4,0,0,'Names of Officers'!$AB$6))*(OFFSET('Names of Officers'!$F$4,0,0,'Names of Officers'!$AB$6))) -> 21
A33: Processing | B33: Civil | C33: Donnick Mugusto | D33: 2017-04-09 | E33: 1.25 | F33: =IF(C33=""," ",SUMPRODUCT((AA33=OFFSET('Role Fee Structure'!$C$3,0,0,'Role Fee Structure'!$AB$5))*(X33=OFFSET('Role Fee Structure'!$F$2,0,0,1,'Role Fee Structure'!$AB$4))*(D33>=OFFSET('Role Fee Structure'!$D$3,0,0,'Role Fee Structure'!$AB$5))*(D33<=OFFSET('Role Fee Structure'!$E$3,0,0,'Role Fee Structure'!$AB$5))*(OFFSET('Role Fee Structure'!$F$3,0,0,'Role Fee Structure'!$AB$5,'Role Fee Structure'!$AB$4)))) -> 235 | G33: =IF(C33="", " ",$E33*$F33) -> 293.75 | L33: =$A$30 -> Process and Grant: | W33: Financial Year | X33: =TEXT(IF(MONTH(D33)>6,YEAR(D33)+1,YEAR(D33)),"####") -> 2017 | Z33: Role Type | AA33: =SUMPRODUCT((C33=OFFSET('Names of Officers'!$B$4,0,0,'Names of Officers'!$AB$6))*(D33>=OFFSET('Names of Officers'!$D$4,0,0,'Names of Officers'!$AB$6))*(D33<=OFFSET('Names of Officers'!$E$4,0,0,'Names of Officers'!$AB$6))*(OFFSET('Names of Officers'!$F$4,0,0,'Names of Officers'!$AB$6))) -> 21
A34: Processing | B34: Civil | C34: Donnick Mugusto | D34: 2017-07-13 | E34: 1.25 | F34: =IF(C34=""," ",SUMPRODUCT((AA34=OFFSET('Role Fee Structure'!$C$3,0,0,'Role Fee Structure'!$AB$5))*(X34=OFFSET('Role Fee Structure'!$F$2,0,0,1,'Role Fee Structure'!$AB$4))*(D34>=OFFSET('Role Fee Structure'!$D$3,0,0,'Role Fee Structure'!$AB$5))*(D34<=OFFSET('Role Fee Structure'!$E$3,0,0,'Role Fee Structure'!$AB$5))*(OFFSET('Role Fee Structure'!$F$3,0,0,'Role Fee Structure'!$AB$5,'Role Fee Structure'!$AB$4)))) -> 235 | G34: =IF(C34="", " ",$E34*$F34) -> 293.75 | L34: =$A$30 -> Process and Grant: | W34: Financial Year | X34: =TEXT(IF(MONTH(D34)>6,YEAR(D34)+1,YEAR(D34)),"####") -> 2018 | Z34: Role Type | AA34: =SUMPRODUCT((C34=OFFSET('Names of Officers'!$B$4,0,0,'Names of Officers'!$AB$6))*(D34>=OFFSET('Names of Officers'!$D$4,0,0,'Names of Officers'!$AB$6))*(D34<=OFFSET('Names of Officers'!$E$4,0,0,'Names of Officers'!$AB$6))*(OFFSET('Names of Officers'!$F$4,0,0,'Names of Officers'!$AB$6))) -> 21
A35: Fire Engineer | C35: Adrienne Slattery | D35: 2017-04-03 | E35: 0.25 | F35: =IF(C35=""," ",SUMPRODUCT((AA35=OFFSET('Role Fee Structure'!$C$3,0,0,'Role Fee Structure'!$AB$5))*(X35=OFFSET('Role Fee Structure'!$F$2,0,0,1,'Role Fee Structure'!$AB$4))*(D35>=OFFSET('Role Fee Structure'!$D$3,0,0,'Role Fee Structure'!$AB$5))*(D35<=OFFSET('Role Fee Structure'!$E$3,0,0,'Role Fee Structure'!$AB$5))*(OFFSET('Role Fee Structure'!$F$3,0,0,'Role Fee Structure'!$AB$5,'Role Fee Structure'!$AB$4)))) -> 295 | G35: =IF(C35="", " ",$E35*$F35) -> 73.75 | L35: =$A$30 -> Process and Grant: | W35: Financial Year | X35: =TEXT(IF(MONTH(D35)>6,YEAR(D35)+1,YEAR(D35)),"####") -> 2017 | Z35: Role Type | AA35: =SUMPRODUCT((C35=OFFSET('Names of Officers'!$B$4,0,0,'Names of Officers'!$AB$6))*(D35>=OFFSET('Names of Officers'!$D$4,0,0,'Names of Officers'!$AB$6))*(D35<=OFFSET('Names of Officers'!$E$4,0,0,'Names of Officers'!$AB$6))*(OFFSET('Names of Officers'!$F$4,0,0,'Names of Officers'!$AB$6))) -> 19
A36: Fire Engineer | C36: Adrienne Slattery | D36: 2017-04-10 | E36: 1 | F36: =IF(C36=""," ",SUMPRODUCT((AA36=OFFSET('Role Fee Structure'!$C$3,0,0,'Role Fee Structure'!$AB$5))*(X36=OFFSET('Role Fee Structure'!$F$2,0,0,1,'Role Fee Structure'!$AB$4))*(D36>=OFFSET('Role Fee Structure'!$D$3,0,0,'Role Fee Structure'!$AB$5))*(D36<=OFFSET('Role Fee Structure'!$E$3,0,0,'Role Fee Structure'!$AB$5))*(OFFSET('Role Fee Structure'!$F$3,0,0,'Role Fee Structure'!$AB$5,'Role Fee Structure'!$AB$4)))) -> 295 | G36: =IF(C36="", " ",$E36*$F36) -> 295 | L36: =$A$30 -> Process and Grant: | W36: Financial Year | X36: =TEXT(IF(MONTH(D36)>6,YEAR(D36)+1,YEAR(D36)),"####") -> 2017 | Z36: Role Type | AA36: =SUMPRODUCT((C36=OFFSET('Names of Officers'!$B$4,0,0,'Names of Officers'!$AB$6))*(D36>=OFFSET('Names of Officers'!$D$4,0,0,'Names of Officers'!$AB$6))*(D36<=OFFSET('Names of Officers'!$E$4,0,0,'Names of Officers'!$AB$6))*(OFFSET('Names of Officers'!$F$4,0,0,'Names of Officers'!$AB$6))) -> 19
A37: Fire Engineer | C37: Adrienne Slattery | D37: 2017-04-11 | E37: 0.75 | F37: =IF(C37=""," ",SUMPRODUCT((AA37=OFFSET('Role Fee Structure'!$C$3,0,0,'Role Fee Structure'!$AB$5))*(X37=OFFSET('Role Fee Structure'!$F$2,0,0,1,'Role Fee Structure'!$AB$4))*(D37>=OFFSET('Role Fee Structure'!$D$3,0,0,'Role Fee Structure'!$AB$5))*(D37<=OFFSET('Role Fee Structure'!$E$3,0,0,'Role Fee Structure'!$AB$5))*(OFFSET('Role Fee Structure'!$F$3,0,0,'Role Fee Structure'!$AB$5,'Role Fee Structure'!$AB$4)))) -> 295 | G37: =IF(C37="", " ",$E37*$F37) -> 221.25 | L37: =$A$30 -> Process and Grant: | W37: Financial Year | X37: =TEXT(IF(MONTH(D37)>6,YEAR(D37)+1,YEAR(D37)),"####") -> 2017 | Z37: Role Type | AA37: =SUMPRODUCT((C37=OFFSET('Names of Officers'!$B$4,0,0,'Names of Officers'!$AB$6))*(D37>=OFFSET('Names of Officers'!$D$4,0,0,'Names of Officers'!$AB$6))*(D37<=OFFSET('Names of Officers'!$E$4,0,0,'Names of Officers'!$AB$6))*(OFFSET('Names of Officers'!$F$4,0,0,'Names of Officers'!$AB$6))) -> 19
A38: Fire Engineer | C38: Adrienne Slattery | D38: 2017-04-20 | E38: 0.5 | F38: =IF(C38=""," ",SUMPRODUCT((AA38=OFFSET('Role Fee Structure'!$C$3,0,0,'Role Fee Structure'!$AB$5))*(X38=OFFSET('Role Fee Structure'!$F$2,0,0,1,'Role Fee Structure'!$AB$4))*(D38>=OFFSET('Role Fee Structure'!$D$3,0,0,'Role Fee Structure'!$AB$5))*(D38<=OFFSET('Role Fee Structure'!$E$3,0,0,'Role Fee Structure'!$AB$5))*(OFFSET('Role Fee Structure'!$F$3,0,0,'Role Fee Structure'!$AB$5,'Role Fee Structure'!$AB$4)))) -> 295 | G38: =IF(C38="", " ",$E38*$F38) -> 147.5 | L38: =$A$30 -> Process and Grant: | W38: Financial Year | X38: =TEXT(IF(MONTH(D38)>6,YEAR(D38)+1,YEAR(D38)),"####") -> 2017 | Z38: Role Type | AA38: =SUMPRODUCT((C38=OFFSET('Names of Officers'!$B$4,0,0,'Names of Officers'!$AB$6))*(D38>=OFFSET('Names of Officers'!$D$4,0,0,'Names of Officers'!$AB$6))*(D38<=OFFSET('Names of Officers'!$E$4,0,0,'Names of Officers'!$AB$6))*(OFFSET('Names of Officers'!$F$4,0,0,'Names of Officers'!$AB$6))) -> 19
A39: Fire Engineer | C39: Adrienne Slattery | D39: 2017-04-21 | E39: 0.25 | F39: =IF(C39=""," ",SUMPRODUCT((AA39=OFFSET('Role Fee Structure'!$C$3,0,0,'Role Fee Structure'!$AB$5))*(X39=OFFSET('Role Fee Structure'!$F$2,0,0,1,'Role Fee Structure'!$AB$4))*(D39>=OFFSET('Role Fee Structure'!$D$3,0,0,'Role Fee Structure'!$AB$5))*(D39<=OFFSET('Role Fee Structure'!$E$3,0,0,'Role Fee Structure'!$AB$5))*(OFFSET('Role Fee Structure'!$F$3,0,0,'Role Fee Structure'!$AB$5,'Role Fee Structure'!$AB$4)))) -> 295 | G39: =IF(C39="", " ",$E39*$F39) -> 73.75 | L39: =$A$30 -> Process and Grant: | W39: Financial Year | X39: =TEXT(IF(MONTH(D39)>6,YEAR(D39)+1,YEAR(D39)),"####") -> 2017 | Z39: Role Type | AA39: =SUMPRODUCT((C39=OFFSET('Names of Officers'!$B$4,0,0,'Names of Officers'!$AB$6))*(D39>=OFFSET('Names of Officers'!$D$4,0,0,'Names of Officers'!$AB$6))*(D39<=OFFSET('Names of Officers'!$E$4,0,0,'Names of Officers'!$AB$6))*(OFFSET('Names of Officers'!$F$4,0,0,'Names of Officers'!$AB$6))) -> 19
A40: Fire Engineer | C40: Adrienne Slattery | D40: 2017-05-04 | E40: 0.25 | F40: =IF(C40=""," ",SUMPRODUCT((AA40=OFFSET('Role Fee Structure'!$C$3,0,0,'Role Fee Structure'!$AB$5))*(X40=OFFSET('Role Fee Structure'!$F$2,0,0,1,'Role Fee Structure'!$AB$4))*(D40>=OFFSET('Role Fee Structure'!$D$3,0,0,'Role Fee Structure'!$AB$5))*(D40<=OFFSET('Role Fee Structure'!$E$3,0,0,'Role Fee Structure'!$AB$5))*(OFFSET('Role Fee Structure'!$F$3,0,0,'Role Fee Structure'!$AB$5,'Role Fee Structure'!$AB$4)))) -> 294 | G40: =IF(C40="", " ",$E40*$F40) -> 73.5 | L40: =$A$30 -> Process and Grant: | W40: Financial Year | X40: =TEXT(IF(MONTH(D40)>6,YEAR(D40)+1,YEAR(D40)),"####") -> 2017 | Z40: Role Type | AA40: =SUMPRODUCT((C40=OFFSET('Names of Officers'!$B$4,0,0,'Names of Officers'!$AB$6))*(D40>=OFFSET('Names of Officers'!$D$4,0,0,'Names of Officers'!$AB$6))*(D40<=OFFSET('Names of Officers'!$E$4,0,0,'Names of Officers'!$AB$6))*(OFFSET('Names of Officers'!$F$4,0,0,'Names of Officers'!$AB$6))) -> 6
A41: Fire Engineer | C41: Adrienne Slattery | D41: 2017-05-09 | E41: 0.25 | F41: =IF(C41=""," ",SUMPRODUCT((AA41=OFFSET('Role Fee Structure'!$C$3,0,0,'Role Fee Structure'!$AB$5))*(X41=OFFSET('Role Fee Structure'!$F$2,0,0,1,'Role Fee Structure'!$AB$4))*(D41>=OFFSET('Role Fee Structure'!$D$3,0,0,'Role Fee Structure'!$AB$5))*(D41<=OFFSET('Role Fee Structure'!$E$3,0,0,'Role Fee Structure'!$AB$5))*(OFFSET('Role Fee Structure'!$F$3,0,0,'Role Fee Structure'!$AB$5,'Role Fee Structure'!$AB$4)))) -> 294 | G41: =IF(C41="", " ",$E41*$F41) -> 73.5 | L41: =$A$30 -> Process and Grant: | W41: Financial Year | X41: =TEXT(IF(MONTH(D41)>6,YEAR(D41)+1,YEAR(D41)),"####") -> 2017 | Z41: Role Type | AA41: =SUMPRODUCT((C41=OFFSET('Names of Officers'!$B$4,0,0,'Names of Officers'!$AB$6))*(D41>=OFFSET('Names of Officers'!$D$4,0,0,'Names of Officers'!$AB$6))*(D41<=OFFSET('Names of Officers'!$E$4,0,0,'Names of Officers'!$AB$6))*(OFFSET('Names of Officers'!$F$4,0,0,'Names of Officers'!$AB$6))) -> 6
A42: Fire Engineer | C42: Adrienne Slattery | D42: 2017-07-31 | E42: 0.5 | F42: =IF(C42=""," ",SUMPRODUCT((AA42=OFFSET('Role Fee Structure'!$C$3,0,0,'Role Fee Structure'!$AB$5))*(X42=OFFSET('Role Fee Structure'!$F$2,0,0,1,'Role Fee Structure'!$AB$4))*(D42>=OFFSET('Role Fee Structure'!$D$3,0,0,'Role Fee Structure'!$AB$5))*(D42<=OFFSET('Role Fee Structure'!$E$3,0,0,'Role Fee Structure'!$AB$5))*(OFFSET('Role Fee Structure'!$F$3,0,0,'Role Fee Structure'!$AB$5,'Role Fee Structure'!$AB$4)))) -> 294 | G42: =IF(C42="", " ",$E42*$F42) -> 147 | L42: =$A$30 -> Process and Grant: | W42: Financial Year | X42: =TEXT(IF(MONTH(D42)>6,YEAR(D42)+1,YEAR(D42)),"####") -> 2018 | Z42: Role Type | AA42: =SUMPRODUCT((C42=OFFSET('Names of Officers'!$B$4,0,0,'Names of Officers'!$AB$6))*(D42>=OFFSET('Names of Officers'!$D$4,0,0,'Names of Officers'!$AB$6))*(D42<=OFFSET('Names of Officers'!$E$4,0,0,'Names of Officers'!$AB$6))*(OFFSET('Names of Officers'!$F$4,0,0,'Names of Officers'!$AB$6))) -> 6
A43: Fire Engineer | C43: Adrienne Slattery | D43: 2017-08-01 | E43: 0.5 | F43: =IF(C43=""," ",SUMPRODUCT((AA43=OFFSET('Role Fee Structure'!$C$3,0,0,'Role Fee Structure'!$AB$5))*(X43=OFFSET('Role Fee Structure'!$F$2,0,0,1,'Role Fee Structure'!$AB$4))*(D43>=OFFSET('Role Fee Structure'!$D$3,0,0,'Role Fee Structure'!$AB$5))*(D43<=OFFSET('Role Fee Structure'!$E$3,0,0,'Role Fee Structure'!$AB$5))*(OFFSET('Role Fee Structure'!$F$3,0,0,'Role Fee Structure'!$AB$5,'Role Fee Structure'!$AB$4)))) -> 294 | G43: =IF(C43="", " ",$E43*$F43) -> 147 | L43: =$A$30 -> Process and Grant: | W43: Financial Year | X43: =TEXT(IF(MONTH(D43)>6,YEAR(D43)+1,YEAR(D43)),"####") -> 2018 | Z43: Role Type | AA43: =SUMPRODUCT((C43=OFFSET('Names of Officers'!$B$4,0,0,'Names of Officers'!$AB$6))*(D43>=OFFSET('Names of Officers'!$D$4,0,0,'Names of Officers'!$AB$6))*(D43<=OFFSET('Names of Officers'!$E$4,0,0,'Names of Officers'!$AB$6))*(OFFSET('Names of Officers'!$F$4,0,0,'Names of Officers'!$AB$6))) -> 6
A44: Other Specialist Input | B44: Fire Consultant | C44: Jonathan Nyman | D44: 2017-07-13 | E44: 1 | F44: =IF(C44=""," ",SUMPRODUCT((AA44=OFFSET('Role Fee Structure'!$C$3,0,0,'Role Fee Structure'!$AB$5))*(X44=OFFSET('Role Fee Structure'!$F$2,0,0,1,'Role Fee Structure'!$AB$4))*(D44>=OFFSET('Role Fee Structure'!$D$3,0,0,'Role Fee Structure'!$AB$5))*(D44<=OFFSET('Role Fee Structure'!$E$3,0,0,'Role Fee Structure'!$AB$5))*(OFFSET('Role Fee Structure'!$F$3,0,0,'Role Fee Structure'!$AB$5,'Role Fee Structure'!$AB$4)))) -> 235 | G44: =IF(C44="", " ",$E44*$F44) -> 235 | L44: =$A$30 -> Process and Grant: | W44: Financial Year | X44: =TEXT(IF(MONTH(D44)>6,YEAR(D44)+1,YEAR(D44)),"####") -> 2018 | Z44: Role Type | AA44: =SUMPRODUCT((C44=OFFSET('Names of Officers'!$B$4,0,0,'Names of Officers'!$AB$6))*(D44>=OFFSET('Names of Officers'!$D$4,0,0,'Names of Officers'!$AB$6))*(D44<=OFFSET('Names of Officers'!$E$4,0,0,'Names of Officers'!$AB$6))*(OFFSET('Names of Officers'!$F$4,0,0,'Names of Officers'!$AB$6))) -> 24
A45: Other Specialist Input | B45: Fire Consultant | C45: Jonathan Nyman | D45: 2017-07-27 | E45: 0.25 | F45: =IF(C45=""," ",SUMPRODUCT((AA45=OFFSET('Role Fee Structure'!$C$3,0,0,'Role Fee Structure'!$AB$5))*(X45=OFFSET('Role Fee Structure'!$F$2,0,0,1,'Role Fee Structure'!$AB$4))*(D45>=OFFSET('Role Fee Structure'!$D$3,0,0,'Role Fee Structure'!$AB$5))*(D45<=OFFSET('Role Fee Structure'!$E$3,0,0,'Role Fee Structure'!$AB$5))*(OFFSET('Role Fee Structure'!$F$3,0,0,'Role Fee Structure'!$AB$5,'Role Fee Structure'!$AB$4)))) -> 235 | G45: =IF(C45="", " ",$E45*$F45) -> 58.75 | L45: =$A$30 -> Process and Grant: | W45: Financial Year | X45: =TEXT(IF(MONTH(D45)>6,YEAR(D45)+1,YEAR(D45)),"####") -> 2018 | Z45: Role Type | AA45: =SUMPRODUCT((C45=OFFSET('Names of Officers'!$B$4,0,0,'Names of Officers'!$AB$6))*(D45>=OFFSET('Names of Officers'!$D$4,0,0,'Names of Officers'!$AB$6))*(D45<=OFFSET('Names of Officers'!$E$4,0,0,'Names of Officers'!$AB$6))*(OFFSET('Names of Officers'!$F$4,0,0,'Names of Officers'!$AB$6))) -> 24
A46: Other Specialist Input | B46: Fire Consultant | C46: Jonathan Nyman | D46: 2017-07-31 | E46: 0.25 | F46: =IF(C46=""," ",SUMPRODUCT((AA46=OFFSET('Role Fee Structure'!$C$3,0,0,'Role Fee Structure'!$AB$5))*(X46=OFFSET('Role Fee Structure'!$F$2,0,0,1,'Role Fee Structure'!$AB$4))*(D46>=OFFSET('Role Fee Structure'!$D$3,0,0,'Role Fee Structure'!$AB$5))*(D46<=OFFSET('Role Fee Structure'!$E$3,0,0,'Role Fee Structure'!$AB$5))*(OFFSET('Role Fee Structure'!$F$3,0,0,'Role Fee Structure'!$AB$5,'Role Fee Structure'!$AB$4)))) -> 235 | G46: =IF(C46="", " ",$E46*$F46) -> 58.75 | L46: =$A$30 -> Process and Grant: | W46: Financial Year | X46: =TEXT(IF(MONTH(D46)>6,YEAR(D46)+1,YEAR(D46)),"####") -> 2018 | Z46: Role Type | AA46: =SUMPRODUCT((C46=OFFSET('Names of Officers'!$B$4,0,0,'Names of Officers'!$AB$6))*(D46>=OFFSET('Names of Officers'!$D$4,0,0,'Names of Officers'!$AB$6))*(D46<=OFFSET('Names of Officers'!$E$4,0,0,'Names of Officers'!$AB$6))*(OFFSET('Names of Officers'!$F$4,0,0,'Names of Officers'!$AB$6))) -> 24
A47: Other Specialist Input | B47: Fire Consultant | C47: Jonathan Nyman | D47: 2017-08-01 | E47: 0.25 | F47: =IF(C47=""," ",SUMPRODUCT((AA47=OFFSET('Role Fee Structure'!$C$3,0,0,'Role Fee Structure'!$AB$5))*(X47=OFFSET('Role Fee Structure'!$F$2,0,0,1,'Role Fee Structure'!$AB$4))*(D47>=OFFSET('Role Fee Structure'!$D$3,0,0,'Role Fee Structure'!$AB$5))*(D47<=OFFSET('Role Fee Structure'!$E$3,0,0,'Role Fee Structure'!$AB$5))*(OFFSET('Role Fee Structure'!$F$3,0,0,'Role Fee Structure'!$AB$5,'Role Fee Structure'!$AB$4)))) -> 235 | G47: =IF(C47="", " ",$E47*$F47) -> 58.75 | L47: =$A$30 -> Process and Grant: | W47: Financial Year | X47: =TEXT(IF(MONTH(D47)>6,YEAR(D47)+1,YEAR(D47)),"####") -> 2018 | Z47: Role Type | AA47: =SUMPRODUCT((C47=OFFSET('Names of Officers'!$B$4,0,0,'Names of Officers'!$AB$6))*(D47>=OFFSET('Names of Officers'!$D$4,0,0,'Names of Officers'!$AB$6))*(D47<=OFFSET('Names of Officers'!$E$4,0,0,'Names of Officers'!$AB$6))*(OFFSET('Names of Officers'!$F$4,0,0,'Names of Officers'!$AB$6))) -> 24
A48: Geotech Engineer | C48: Margaret Stoffel | D48: 2017-04-05 | E48: 0.5 | F48: =IF(C48=""," ",SUMPRODUCT((AA48=OFFSET('Role Fee Structure'!$C$3,0,0,'Role Fee Structure'!$AB$5))*(X48=OFFSET('Role Fee Structure'!$F$2,0,0,1,'Role Fee Structure'!$AB$4))*(D48>=OFFSET('Role Fee Structure'!$D$3,0,0,'Role Fee Structure'!$AB$5))*(D48<=OFFSET('Role Fee Structure'!$E$3,0,0,'Role Fee Structure'!$AB$5))*(OFFSET('Role Fee Structure'!$F$3,0,0,'Role Fee Structure'!$AB$5,'Role Fee Structure'!$AB$4)))) -> 265 | G48: =IF(C48="", " ",$E48*$F48) -> 132.5 | L48: =$A$30 -> Process and Grant: | W48: Financial Year | X48: =TEXT(IF(MONTH(D48)>6,YEAR(D48)+1,YEAR(D48)),"####") -> 2017 | Z48: Role Type | AA48: =SUMPRODUCT((C48=OFFSET('Names of Officers'!$B$4,0,0,'Names of Officers'!$AB$6))*(D48>=OFFSET('Names of Officers'!$D$4,0,0,'Names of Officers'!$AB$6))*(D48<=OFFSET('Names of Officers'!$E$4,0,0,'Names of Officers'!$AB$6))*(OFFSET('Names of Officers'!$F$4,0,0,'Names of Officers'!$AB$6))) -> 25
A49: Geotech Engineer | C49: Margaret Stoffel | D49: 2017-04-05 | E49: 1 | F49: =IF(C49=""," ",SUMPRODUCT((AA49=OFFSET('Role Fee Structure'!$C$3,0,0,'Role Fee Structure'!$AB$5))*(X49=OFFSET('Role Fee Structure'!$F$2,0,0,1,'Role Fee Structure'!$AB$4))*(D49>=OFFSET('Role Fee Structure'!$D$3,0,0,'Role Fee Structure'!$AB$5))*(D49<=OFFSET('Role Fee Structure'!$E$3,0,0,'Role Fee Structure'!$AB$5))*(OFFSET('Role Fee Structure'!$F$3,0,0,'Role Fee Structure'!$AB$5,'Role Fee Structure'!$AB$4)))) -> 265 | G49: =IF(C49="", " ",$E49*$F49) -> 265 | L49: =$A$30 -> Process and Grant: | W49: Financial Year | X49: =TEXT(IF(MONTH(D49)>6,YEAR(D49)+1,YEAR(D49)),"####") -> 2017 | Z49: Role Type | AA49: =SUMPRODUCT((C49=OFFSET('Names of Officers'!$B$4,0,0,'Names of Officers'!$AB$6))*(D49>=OFFSET('Names of Officers'!$D$4,0,0,'Names of Officers'!$AB$6))*(D49<=OFFSET('Names of Officers'!$E$4,0,0,'Names of Officers'!$AB$6))*(OFFSET('Names of Officers'!$F$4,0,0,'Names of Officers'!$AB$6))) -> 25
A50: Geotech Engineer | C50: Margaret Stoffel | D50: 2017-07-13 | E50: 1 | F50: =IF(C50=""," ",SUMPRODUCT((AA50=OFFSET('Role Fee Structure'!$C$3,0,0,'Role Fee Structure'!$AB$5))*(X50=OFFSET('Role Fee Structure'!$F$2,0,0,1,'Role Fee Structure'!$AB$4))*(D50>=OFFSET('Role Fee Structure'!$D$3,0,0,'Role Fee Structure'!$AB$5))*(D50<=OFFSET('Role Fee Structure'!$E$3,0,0,'Role Fee Structure'!$AB$5))*(OFFSET('Role Fee Structure'!$F$3,0,0,'Role Fee Structure'!$AB$5,'Role Fee Structure'!$AB$4)))) -> 265 | G50: =IF(C50="", " ",$E50*$F50) -> 265 | L50: =$A$30 -> Process and Grant: | W50: Financial Year | X50: =TEXT(IF(MONTH(D50)>6,YEAR(D50)+1,YEAR(D50)),"####") -> 2018 | Z50: Role Type | AA50: =SUMPRODUCT((C50=OFFSET('Names of Officers'!$B$4,0,0,'Names of Officers'!$AB$6))*(D50>=OFFSET('Names of Officers'!$D$4,0,0,'Names of Officers'!$AB$6))*(D50<=OFFSET('Names of Officers'!$E$4,0,0,'Names of Officers'!$AB$6))*(OFFSET('Names of Officers'!$F$4,0,0,'Names of Officers'!$AB$6))) -> 25
A51: Geotech Engineer | C51: Margaret Stoffel | D51: 2017-07-31 | E51: 1 | F51: =IF(C51=""," ",SUMPRODUCT((AA51=OFFSET('Role Fee Structure'!$C$3,0,0,'Role Fee Structure'!$AB$5))*(X51=OFFSET('Role Fee Structure'!$F$2,0,0,1,'Role Fee Structure'!$AB$4))*(D51>=OFFSET('Role Fee Structure'!$D$3,0,0,'Role Fee Structure'!$AB$5))*(D51<=OFFSET('Role Fee Structure'!$E$3,0,0,'Role Fee Structure'!$AB$5))*(OFFSET('Role Fee Structure'!$F$3,0,0,'Role Fee Structure'!$AB$5,'Role Fee Structure'!$AB$4)))) -> 265 | G51: =IF(C51="", " ",$E51*$F51) -> 265 | L51: =$A$30 -> Process and Grant: | W51: Financial Year | X51: =TEXT(IF(MONTH(D51)>6,YEAR(D51)+1,YEAR(D51)),"####") -> 2018 | Z51: Role Type | AA51: =SUMPRODUCT((C51=OFFSET('Names of Officers'!$B$4,0,0,'Names of Officers'!$AB$6))*(D51>=OFFSET('Names of Officers'!$D$4,0,0,'Names of Officers'!$AB$6))*(D51<=OFFSET('Names of Officers'!$E$4,0,0,'Names of Officers'!$AB$6))*(OFFSET('Names of Officers'!$F$4,0,0,'Names of Officers'!$AB$6))) -> 25
A52: Geotech Engineer | C52: Margaret Stoffel | D52: 2017-08-01 | E52: 0.08 | F52: =IF(C52=""," ",SUMPRODUCT((AA52=OFFSET('Role Fee Structure'!$C$3,0,0,'Role Fee Structure'!$AB$5))*(X52=OFFSET('Role Fee Structure'!$F$2,0,0,1,'Role Fee Structure'!$AB$4))*(D52>=OFFSET('Role Fee Structure'!$D$3,0,0,'Role Fee Structure'!$AB$5))*(D52<=OFFSET('Role Fee Structure'!$E$3,0,0,'Role Fee Structure'!$AB$5))*(OFFSET('Role Fee Structure'!$F$3,0,0,'Role Fee Structure'!$AB$5,'Role Fee Structure'!$AB$4)))) -> 265 | G52: =IF(C52="", " ",$E52*$F52) -> 21.2 | L52: =$A$30 -> Process and Grant: | W52: Financial Year | X52: =TEXT(IF(MONTH(D52)>6,YEAR(D52)+1,YEAR(D52)),"####") -> 2018 | Z52: Role Type | AA52: =SUMPRODUCT((C52=OFFSET('Names of Officers'!$B$4,0,0,'Names of Officers'!$AB$6))*(D52>=OFFSET('Names of Officers'!$D$4,0,0,'Names of Officers'!$AB$6))*(D52<=OFFSET('Names of Officers'!$E$4,0,0,'Names of Officers'!$AB$6))*(OFFSET('Names of Officers'!$F$4,0,0,'Names of Officers'!$AB$6))) -> 25
A53: Geotech Engineer | C53: Margaret Stoffel | D53: 2017-08-15 | E53: 1 | F53: =IF(C53=""," ",SUMPRODUCT((AA53=OFFSET('Role Fee Structure'!$C$3,0,0,'Role Fee Structure'!$AB$5))*(X53=OFFSET('Role Fee Structure'!$F$2,0,0,1,'Role Fee Structure'!$AB$4))*(D53>=OFFSET('Role Fee Structure'!$D$3,0,0,'Role Fee Structure'!$AB$5))*(D53<=OFFSET('Role Fee Structure'!$E$3,0,0,'Role Fee Structure'!$AB$5))*(OFFSET('Role Fee Structure'!$F$3,0,0,'Role Fee Structure'!$AB$5,'Role Fee Structure'!$AB$4)))) -> 265 | G53: =IF(C53="", " ",$E53*$F53) -> 265 | L53: =$A$30 -> Process and Grant: | W53: Financial Year | X53: =TEXT(IF(MONTH(D53)>6,YEAR(D53)+1,YEAR(D53)),"####") -> 2018 | Z53: Role Type | AA53: =SUMPRODUCT((C53=OFFSET('Names of Officers'!$B$4,0,0,'Names of Officers'!$AB$6))*(D53>=OFFSET('Names of Officers'!$D$4,0,0,'Names of Officers'!$AB$6))*(D53<=OFFSET('Names of Officers'!$E$4,0,0,'Names of Officers'!$AB$6))*(OFFSET('Names of Officers'!$F$4,0,0,'Names of Officers'!$AB$6))) -> 25
A54: Other Specialist Input | B54: Mechanical Engineer | C54: Nick Waddington | D54: 2017-04-07 | E54: 0.75 | F54: =IF(C54=""," ",SUMPRODUCT((AA54=OFFSET('Role Fee Structure'!$C$3,0,0,'Role Fee Structure'!$AB$5))*(X54=OFFSET('Role Fee Structure'!$F$2,0,0,1,'Role Fee Structure'!$AB$4))*(D54>=OFFSET('Role Fee Structure'!$D$3,0,0,'Role Fee Structure'!$AB$5))*(D54<=OFFSET('Role Fee Structure'!$E$3,0,0,'Role Fee Structure'!$AB$5))*(OFFSET('Role Fee Structure'!$F$3,0,0,'Role Fee Structure'!$AB$5,'Role Fee Structure'!$AB$4)))) -> 260 | G54: =IF(C54="", " ",$E54*$F54) -> 195 | L54: =$A$30 -> Process and Grant: | W54: Financial Year | X54: =TEXT(IF(MONTH(D54)>6,YEAR(D54)+1,YEAR(D54)),"####") -> 2017 | Z54: Role Type | AA54: =SUMPRODUCT((C54=OFFSET('Names of Officers'!$B$4,0,0,'Names of Officers'!$AB$6))*(D54>=OFFSET('Names of Officers'!$D$4,0,0,'Names of Officers'!$AB$6))*(D54<=OFFSET('Names of Officers'!$E$4,0,0,'Names of Officers'!$AB$6))*(OFFSET('Names of Officers'!$F$4,0,0,'Names of Officers'!$AB$6))) -> 12
A55: Other Specialist Input | B55: Mechanical Engineer | C55: Nick Waddington | D55: 2017-07-12 | E55: 0.75 | F55: =IF(C55=""," ",SUMPRODUCT((AA55=OFFSET('Role Fee Structure'!$C$3,0,0,'Role Fee Structure'!$AB$5))*(X55=OFFSET('Role Fee Structure'!$F$2,0,0,1,'Role Fee Structure'!$AB$4))*(D55>=OFFSET('Role Fee Structure'!$D$3,0,0,'Role Fee Structure'!$AB$5))*(D55<=OFFSET('Role Fee Structure'!$E$3,0,0,'Role Fee Structure'!$AB$5))*(OFFSET('Role Fee Structure'!$F$3,0,0,'Role Fee Structure'!$AB$5,'Role Fee Structure'!$AB$4)))) -> 260 | G55: =IF(C55="", " ",$E55*$F55) -> 195 | L55: =$A$30 -> Process and Grant: | W55: Financial Year | X55: =TEXT(IF(MONTH(D55)>6,YEAR(D55)+1,YEAR(D55)),"####") -> 2018 | Z55: Role Type | AA55: =SUMPRODUCT((C55=OFFSET('Names of Officers'!$B$4,0,0,'Names of Officers'!$AB$6))*(D55>=OFFSET('Names of Officers'!$D$4,0,0,'Names of Officers'!$AB$6))*(D55<=OFFSET('Names of Officers'!$E$4,0,0,'Names of Officers'!$AB$6))*(OFFSET('Names of Officers'!$F$4,0,0,'Names of Officers'!$AB$6))) -> 12
A56: Other Specialist Input | B56: Mechanical Engineer | C56: Nick Waddington | D56: 2017-08-01 | E56: 0.75 | F56: =IF(C56=""," ",SUMPRODUCT((AA56=OFFSET('Role Fee Structure'!$C$3,0,0,'Role Fee Structure'!$AB$5))*(X56=OFFSET('Role Fee Structure'!$F$2,0,0,1,'Role Fee Structure'!$AB$4))*(D56>=OFFSET('Role Fee Structure'!$D$3,0,0,'Role Fee Structure'!$AB$5))*(D56<=OFFSET('Role Fee Structure'!$E$3,0,0,'Role Fee Structure'!$AB$5))*(OFFSET('Role Fee Structure'!$F$3,0,0,'Role Fee Structure'!$AB$5,'Role Fee Structure'!$AB$4)))) -> 260 | G56: =IF(C56="", " ",$E56*$F56) -> 195 | L56: =$A$30 -> Process and Grant: | W56: Financial Year | X56: =TEXT(IF(MONTH(D56)>6,YEAR(D56)+1,YEAR(D56)),"####") -> 2018 | Z56: Role Type | AA56: =SUMPRODUCT((C56=OFFSET('Names of Officers'!$B$4,0,0,'Names of Officers'!$AB$6))*(D56>=OFFSET('Names of Officers'!$D$4,0,0,'Names of Officers'!$AB$6))*(D56<=OFFSET('Names of Officers'!$E$4,0,0,'Names of Officers'!$AB$6))*(OFFSET('Names of Officers'!$F$4,0,0,'Names of Officers'!$AB$6))) -> 12
A57: Other Specialist Input | B57: Mechanical Engineer | C57: Nick Waddington | D57: 2017-08-02 | E57: 0.5 | F57: =IF(C57=""," ",SUMPRODUCT((AA57=OFFSET('Role Fee Structure'!$C$3,0,0,'Role Fee Structure'!$AB$5))*(X57=OFFSET('Role Fee Structure'!$F$2,0,0,1,'Role Fee Structure'!$AB$4))*(D57>=OFFSET('Role Fee Structure'!$D$3,0,0,'Role Fee Structure'!$AB$5))*(D57<=OFFSET('Role Fee Structure'!$E$3,0,0,'Role Fee Structure'!$AB$5))*(OFFSET('Role Fee Structure'!$F$3,0,0,'Role Fee Structure'!$AB$5,'Role Fee Structure'!$AB$4)))) -> 260 | G57: =IF(C57="", " ",$E57*$F57) -> 130 | L57: =$A$30 -> Process and Grant: | W57: Financial Year | X57: =TEXT(IF(MONTH(D57)>6,YEAR(D57)+1,YEAR(D57)),"####") -> 2018 | Z57: Role Type | AA57: =SUMPRODUCT((C57=OFFSET('Names of Officers'!$B$4,0,0,'Names of Officers'!$AB$6))*(D57>=OFFSET('Names of Officers'!$D$4,0,0,'Names of Officers'!$AB$6))*(D57<=OFFSET('Names of Officers'!$E$4,0,0,'Names of Officers'!$AB$6))*(OFFSET('Names of Officers'!$F$4,0,0,'Names of Officers'!$AB$6))) -> 12
A58: Other Specialist Input | B58: Mechanical Engineer | C58: Nick Waddington | D58: 2017-08-03 | E58: 0.25 | F58: =IF(C58=""," ",SUMPRODUCT((AA58=OFFSET('Role Fee Structure'!$C$3,0,0,'Role Fee Structure'!$AB$5))*(X58=OFFSET('Role Fee Structure'!$F$2,0,0,1,'Role Fee Structure'!$AB$4))*(D58>=OFFSET('Role Fee Structure'!$D$3,0,0,'Role Fee Structure'!$AB$5))*(D58<=OFFSET('Role Fee Structure'!$E$3,0,0,'Role Fee Structure'!$AB$5))*(OFFSET('Role Fee Structure'!$F$3,0,0,'Role Fee Structure'!$AB$5,'Role Fee Structure'!$AB$4)))) -> 260 | G58: =IF(C58="", " ",$E58*$F58) -> 65 | L58: =$A$30 -> Process and Grant: | W58: Financial Year | X58: =TEXT(IF(MONTH(D58)>6,YEAR(D58)+1,YEAR(D58)),"####") -> 2018 | Z58: Role Type | AA58: =SUMPRODUCT((C58=OFFSET('Names of Officers'!$B$4,0,0,'Names of Officers'!$AB$6))*(D58>=OFFSET('Names of Officers'!$D$4,0,0,'Names of Officers'!$AB$6))*(D58<=OFFSET('Names of Officers'!$E$4,0,0,'Names of Officers'!$AB$6))*(OFFSET('Names of Officers'!$F$4,0,0,'Names of Officers'!$AB$6))) -> 12
A59: Other Specialist Input | B59: Mechanical Engineer | C59: Nick Waddington | D59: 2017-08-15 | E59: 0.75 | F59: =IF(C59=""," ",SUMPRODUCT((AA59=OFFSET('Role Fee Structure'!$C$3,0,0,'Role Fee Structure'!$AB$5))*(X59=OFFSET('Role Fee Structure'!$F$2,0,0,1,'Role Fee Structure'!$AB$4))*(D59>=OFFSET('Role Fee Structure'!$D$3,0,0,'Role Fee Structure'!$AB$5))*(D59<=OFFSET('Role Fee Structure'!$E$3,0,0,'Role Fee Structure'!$AB$5))*(OFFSET('Role Fee Structure'!$F$3,0,0,'Role Fee Structure'!$AB$5,'Role Fee Structure'!$AB$4)))) -> 260 | G59: =IF(C59="", " ",$E59*$F59) -> 195 | L59: =$A$30 -> Process and Grant: | W59: Financial Year | X59: =TEXT(IF(MONTH(D59)>6,YEAR(D59)+1,YEAR(D59)),"####") -> 2018 | Z59: Role Type | AA59: =SUMPRODUCT((C59=OFFSET('Names of Officers'!$B$4,0,0,'Names of Officers'!$AB$6))*(D59>=OFFSET('Names of Officers'!$D$4,0,0,'Names of Officers'!$AB$6))*(D59<=OFFSET('Names of Officers'!$E$4,0,0,'Names of Officers'!$AB$6))*(OFFSET('Names of Officers'!$F$4,0,0,'Names of Officers'!$AB$6))) -> 12
A60: Communication | C60: Nico Chen | D60: 2017-03-30 | E60: 0.17 | F60: =IF(C60=""," ",SUMPRODUCT((AA60=OFFSET('Role Fee Structure'!$C$3,0,0,'Role Fee Structure'!$AB$5))*(X60=OFFSET('Role Fee Structure'!$F$2,0,0,1,'Role Fee Structure'!$AB$4))*(D60>=OFFSET('Role Fee Structure'!$D$3,0,0,'Role Fee Structure'!$AB$5))*(D60<=OFFSET('Role Fee Structure'!$E$3,0,0,'Role Fee Structure'!$AB$5))*(OFFSET('Role Fee Structure'!$F$3,0,0,'Role Fee Structure'!$AB$5,'Role Fee Structure'!$AB$4)))) -> 173 | G60: =IF(C60="", " ",$E60*$F60) -> 29.41 | L60: =$A$30 -> Process and Grant: | W60: Financial Year | X60: =TEXT(IF(MONTH(D60)>6,YEAR(D60)+1,YEAR(D60)),"####") -> 2017 | Z60: Role Type | AA60: =SUMPRODUCT((C60=OFFSET('Names of Officers'!$B$4,0,0,'Names of Officers'!$AB$6))*(D60>=OFFSET('Names of Officers'!$D$4,0,0,'Names of Officers'!$AB$6))*(D60<=OFFSET('Names of Officers'!$E$4,0,0,'Names of Officers'!$AB$6))*(OFFSET('Names of Officers'!$F$4,0,0,'Names of Officers'!$AB$6))) -> 34
A61: Communication | C61: Nico Chen | D61: 2017-03-30 | E61: 0.17 | F61: =IF(C61=""," ",SUMPRODUCT((AA61=OFFSET('Role Fee Structure'!$C$3,0,0,'Role Fee Structure'!$AB$5))*(X61=OFFSET('Role Fee Structure'!$F$2,0,0,1,'Role Fee Structure'!$AB$4))*(D61>=OFFSET('Role Fee Structure'!$D$3,0,0,'Role Fee Structure'!$AB$5))*(D61<=OFFSET('Role Fee Structure'!$E$3,0,0,'Role Fee Structure'!$AB$5))*(OFFSET('Role Fee Structure'!$F$3,0,0,'Role Fee Structure'!$AB$5,'Role Fee Structure'!$AB$4)))) -> 173 | G61: =IF(C61="", " ",$E61*$F61) -> 29.41 | L61: =$A$30 -> Process and Grant: | W61: Financial Year | X61: =TEXT(IF(MONTH(D61)>6,YEAR(D61)+1,YEAR(D61)),"####") -> 2017 | Z61: Role Type | AA61: =SUMPRODUCT((C61=OFFSET('Names of Officers'!$B$4,0,0,'Names of Officers'!$AB$6))*(D61>=OFFSET('Names of Officers'!$D$4,0,0,'Names of Officers'!$AB$6))*(D61<=OFFSET('Names of Officers'!$E$4,0,0,'Names of Officers'!$AB$6))*(OFFSET('Names of Officers'!$F$4,0,0,'Names of Officers'!$AB$6))) -> 34
A62: Communication | C62: Nico Chen | D62: 2017-04-04 | E62: 0.17 | F62: =IF(C62=""," ",SUMPRODUCT((AA62=OFFSET('Role Fee Structure'!$C$3,0,0,'Role Fee Structure'!$AB$5))*(X62=OFFSET('Role Fee Structure'!$F$2,0,0,1,'Role Fee Structure'!$AB$4))*(D62>=OFFSET('Role Fee Structure'!$D$3,0,0,'Role Fee Structure'!$AB$5))*(D62<=OFFSET('Role Fee Structure'!$E$3,0,0,'Role Fee Structure'!$AB$5))*(OFFSET('Role Fee Structure'!$F$3,0,0,'Role Fee Structure'!$AB$5,'Role Fee Structure'!$AB$4)))) -> 173 | G62: =IF(C62="", " ",$E62*$F62) -> 29.41 | L62: =$A$30 -> Process and Grant: | W62: Financial Year | X62: =TEXT(IF(MONTH(D62)>6,YEAR(D62)+1,YEAR(D62)),"####") -> 2017 | Z62: Role Type | AA62: =SUMPRODUCT((C62=OFFSET('Names of Officers'!$B$4,0,0,'Names of Officers'!$AB$6))*(D62>=OFFSET('Names of Officers'!$D$4,0,0,'Names of Officers'!$AB$6))*(D62<=OFFSET('Names of Officers'!$E$4,0,0,'Names of Officers'!$AB$6))*(OFFSET('Names of Officers'!$F$4,0,0,'Names of Officers'!$AB$6))) -> 34
A63: Communication | C63: Nico Chen | D63: 2017-04-06 | E63: 0.17 | F63: =IF(C63=""," ",SUMPRODUCT((AA63=OFFSET('Role Fee Structure'!$C$3,0,0,'Role Fee Structure'!$AB$5))*(X63=OFFSET('Role Fee Structure'!$F$2,0,0,1,'Role Fee Structure'!$AB$4))*(D63>=OFFSET('Role Fee Structure'!$D$3,0,0,'Role Fee Structure'!$AB$5))*(D63<=OFFSET('Role Fee Structure'!$E$3,0,0,'Role Fee Structure'!$AB$5))*(OFFSET('Role Fee Structure'!$F$3,0,0,'Role Fee Structure'!$AB$5,'Role Fee Structure'!$AB$4)))) -> 173 | G63: =IF(C63="", " ",$E63*$F63) -> 29.41 | L63: =$A$30 -> Process and Grant: | W63: Financial Year | X63: =TEXT(IF(MONTH(D63)>6,YEAR(D63)+1,YEAR(D63)),"####") -> 2017 | Z63: Role Type | AA63: =SUMPRODUCT((C63=OFFSET('Names of Officers'!$B$4,0,0,'Names of Officers'!$AB$6))*(D63>=OFFSET('Names of Officers'!$D$4,0,0,'Names of Officers'!$AB$6))*(D63<=OFFSET('Names of Officers'!$E$4,0,0,'Names of Officers'!$AB$6))*(OFFSET('Names of Officers'!$F$4,0,0,'Names of Officers'!$AB$6))) -> 34
A64: Structural Engineer | C64: Rolando Basobas | D64: 2017-03-29 | E64: 0.5 | F64: =IF(C64=""," ",SUMPRODUCT((AA64=OFFSET('Role Fee Structure'!$C$3,0,0,'Role Fee Structure'!$AB$5))*(X64=OFFSET('Role Fee Structure'!$F$2,0,0,1,'Role Fee Structure'!$AB$4))*(D64>=OFFSET('Role Fee Structure'!$D$3,0,0,'Role Fee Structure'!$AB$5))*(D64<=OFFSET('Role Fee Structure'!$E$3,0,0,'Role Fee Structure'!$AB$5))*(OFFSET('Role Fee Structure'!$F$3,0,0,'Role Fee Structure'!$AB$5,'Role Fee Structure'!$AB$4)))) -> 273 | G64: =IF(C64="", " ",$E64*$F64) -> 136.5 | L64: =$A$30 -> Process and Grant: | W64: Financial Year | X64: =TEXT(IF(MONTH(D64)>6,YEAR(D64)+1,YEAR(D64)),"####") -> 2017 | Z64: Role Type | AA64: =SUMPRODUCT((C64=OFFSET('Names of Officers'!$B$4,0,0,'Names of Officers'!$AB$6))*(D64>=OFFSET('Names of Officers'!$D$4,0,0,'Names of Officers'!$AB$6))*(D64<=OFFSET('Names of Officers'!$E$4,0,0,'Names of Officers'!$AB$6))*(OFFSET('Names of Officers'!$F$4,0,0,'Names of Officers'!$AB$6))) -> 5
A65: Structural Engineer | C65: Rolando Basobas | D65: 2017-07-14 | E65: 0.7 | F65: =IF(C65=""," ",SUMPRODUCT((AA65=OFFSET('Role Fee Structure'!$C$3,0,0,'Role Fee Structure'!$AB$5))*(X65=OFFSET('Role Fee Structure'!$F$2,0,0,1,'Role Fee Structure'!$AB$4))*(D65>=OFFSET('Role Fee Structure'!$D$3,0,0,'Role Fee Structure'!$AB$5))*(D65<=OFFSET('Role Fee Structure'!$E$3,0,0,'Role Fee Structure'!$AB$5))*(OFFSET('Role Fee Structure'!$F$3,0,0,'Role Fee Structure'!$AB$5,'Role Fee Structure'!$AB$4)))) -> 275 | G65: =IF(C65="", " ",$E65*$F65) -> 192.5 | L65: =$A$30 -> Process and Grant: | W65: Financial Year | X65: =TEXT(IF(MONTH(D65)>6,YEAR(D65)+1,YEAR(D65)),"####") -> 2018 | Z65: Role Type | AA65: =SUMPRODUCT((C65=OFFSET('Names of Officers'!$B$4,0,0,'Names of Officers'!$AB$6))*(D65>=OFFSET('Names of Officers'!$D$4,0,0,'Names of Officers'!$AB$6))*(D65<=OFFSET('Names of Officers'!$E$4,0,0,'Names of Officers'!$AB$6))*(OFFSET('Names of Officers'!$F$4,0,0,'Names of Officers'!$AB$6))) -> 5
A66: Processing | C66: Tania McGrath | D66: 2017-04-06 | E66: 0.58 | F66: =IF(C66=""," ",SUMPRODUCT((AA66=OFFSET('Role Fee Structure'!$C$3,0,0,'Role Fee Structure'!$AB$5))*(X66=OFFSET('Role Fee Structure'!$F$2,0,0,1,'Role Fee Structure'!$AB$4))*(D66>=OFFSET('Role Fee Structure'!$D$3,0,0,'Role Fee Structure'!$AB$5))*(D66<=OFFSET('Role Fee Structure'!$E$3,0,0,'Role Fee Structure'!$AB$5))*(OFFSET('Role Fee Structure'!$F$3,0,0,'Role Fee Structure'!$AB$5,'Role Fee Structure'!$AB$4)))) -> 220 | G66: =IF(C66="", " ",$E66*$F66) -> 127.6 | L66: =$A$30 -> Process and Grant: | W66: Financial Year | X66: =TEXT(IF(MONTH(D66)>6,YEAR(D66)+1,YEAR(D66)),"####") -> 2017 | Z66: Role Type | AA66: =SUMPRODUCT((C66=OFFSET('Names of Officers'!$B$4,0,0,'Names of Officers'!$AB$6))*(D66>=OFFSET('Names of Officers'!$D$4,0,0,'Names of Officers'!$AB$6))*(D66<=OFFSET('Names of Officers'!$E$4,0,0,'Names of Officers'!$AB$6))*(OFFSET('Names of Officers'!$F$4,0,0,'Names of Officers'!$AB$6))) -> 3
A67: Processing | C67: Tania McGrath | D67: 2017-04-06 | E67: 1.33 | F67: =IF(C67=""," ",SUMPRODUCT((AA67=OFFSET('Role Fee Structure'!$C$3,0,0,'Role Fee Structure'!$AB$5))*(X67=OFFSET('Role Fee Structure'!$F$2,0,0,1,'Role Fee Structure'!$AB$4))*(D67>=OFFSET('Role Fee Structure'!$D$3,0,0,'Role Fee Structure'!$AB$5))*(D67<=OFFSET('Role Fee Structure'!$E$3,0,0,'Role Fee Structure'!$AB$5))*(OFFSET('Role Fee Structure'!$F$3,0,0,'Role Fee Structure'!$AB$5,'Role Fee Structure'!$AB$4)))) -> 220 | G67: =IF(C67="", " ",$E67*$F67) -> 292.6 | L67: =$A$30 -> Process and Grant: | W67: Financial Year | X67: =TEXT(IF(MONTH(D67)>6,YEAR(D67)+1,YEAR(D67)),"####") -> 2017 | Z67: Role Type | AA67: =SUMPRODUCT((C67=OFFSET('Names of Officers'!$B$4,0,0,'Names of Officers'!$AB$6))*(D67>=OFFSET('Names of Officers'!$D$4,0,0,'Names of Officers'!$AB$6))*(D67<=OFFSET('Names of Officers'!$E$4,0,0,'Names of Officers'!$AB$6))*(OFFSET('Names of Officers'!$F$4,0,0,'Names of Officers'!$AB$6))) -> 3
A68: Processing | C68: Tania McGrath | D68: 2017-04-06 | E68: 1.5 | F68: =IF(C68=""," ",SUMPRODUCT((AA68=OFFSET('Role Fee Structure'!$C$3,0,0,'Role Fee Structure'!$AB$5))*(X68=OFFSET('Role Fee Structure'!$F$2,0,0,1,'Role Fee Structure'!$AB$4))*(D68>=OFFSET('Role Fee Structure'!$D$3,0,0,'Role Fee Structure'!$AB$5))*(D68<=OFFSET('Role Fee Structure'!$E$3,0,0,'Role Fee Structure'!$AB$5))*(OFFSET('Role Fee Structure'!$F$3,0,0,'Role Fee Structure'!$AB$5,'Role Fee Structure'!$AB$4)))) -> 220 | G68: =IF(C68="", " ",$E68*$F68) -> 330 | L68: =$A$30 -> Process and Grant: | W68: Financial Year | X68: =TEXT(IF(MONTH(D68)>6,YEAR(D68)+1,YEAR(D68)),"####") -> 2017 | Z68: Role Type | AA68: =SUMPRODUCT((C68=OFFSET('Names of Officers'!$B$4,0,0,'Names of Officers'!$AB$6))*(D68>=OFFSET('Names of Officers'!$D$4,0,0,'Names of Officers'!$AB$6))*(D68<=OFFSET('Names of Officers'!$E$4,0,0,'Names of Officers'!$AB$6))*(OFFSET('Names of Officers'!$F$4,0,0,'Names of Officers'!$AB$6))) -> 3
A69: Processing | C69: Tania McGrath | D69: 2017-04-07 | E69: 1.17 | F69: =IF(C69=""," ",SUMPRODUCT((AA69=OFFSET('Role Fee Structure'!$C$3,0,0,'Role Fee Structure'!$AB$5))*(X69=OFFSET('Role Fee Structure'!$F$2,0,0,1,'Role Fee Structure'!$AB$4))*(D69>=OFFSET('Role Fee Structure'!$D$3,0,0,'Role Fee Structure'!$AB$5))*(D69<=OFFSET('Role Fee Structure'!$E$3,0,0,'Role Fee Structure'!$AB$5))*(OFFSET('Role Fee Structure'!$F$3,0,0,'Role Fee Structure'!$AB$5,'Role Fee Structure'!$AB$4)))) -> 220 | G69: =IF(C69="", " ",$E69*$F69) -> 257.4 | L69: =$A$30 -> Process and Grant: | W69: Financial Year | X69: =TEXT(IF(MONTH(D69)>6,YEAR(D69)+1,YEAR(D69)),"####") -> 2017 | Z69: Role Type | AA69: =SUMPRODUCT((C69=OFFSET('Names of Officers'!$B$4,0,0,'Names of Officers'!$AB$6))*(D69>=OFFSET('Names of Officers'!$D$4,0,0,'Names of Officers'!$AB$6))*(D69<=OFFSET('Names of Officers'!$E$4,0,0,'Names of Officers'!$AB$6))*(OFFSET('Names of Officers'!$F$4,0,0,'Names of Officers'!$AB$6))) -> 3
A70: Processing | C70: Tania McGrath | D70: 2017-04-10 | E70: 3.67 | F70: =IF(C70=""," ",SUMPRODUCT((AA70=OFFSET('Role Fee Structure'!$C$3,0,0,'Role Fee Structure'!$AB$5))*(X70=OFFSET('Role Fee Structure'!$F$2,0,0,1,'Role Fee Structure'!$AB$4))*(D70>=OFFSET('Role Fee Structure'!$D$3,0,0,'Role Fee Structure'!$AB$5))*(D70<=OFFSET('Role Fee Structure'!$E$3,0,0,'Role Fee Structure'!$AB$5))*(OFFSET('Role Fee Structure'!$F$3,0,0,'Role Fee Structure'!$AB$5,'Role Fee Structure'!$AB$4)))) -> 220 | G70: =IF(C70="", " ",$E70*$F70) -> 807.4 | L70: =$A$30 -> Process and Grant: | W70: Financial Year | X70: =TEXT(IF(MONTH(D70)>6,YEAR(D70)+1,YEAR(D70)),"####") -> 2017 | Z70: Role Type | AA70: =SUMPRODUCT((C70=OFFSET('Names of Officers'!$B$4,0,0,'Names of Officers'!$AB$6))*(D70>=OFFSET('Names of Officers'!$D$4,0,0,'Names of Officers'!$AB$6))*(D70<=OFFSET('Names of Officers'!$E$4,0,0,'Names of Officers'!$AB$6))*(OFFSET('Names of Officers'!$F$4,0,0,'Names of Officers'!$AB$6))) -> 3
A71: Processing | C71: Tania McGrath | D71: 2017-04-11 | E71: 1.75 | F71: =IF(C71=""," ",SUMPRODUCT((AA71=OFFSET('Role Fee Structure'!$C$3,0,0,'Role Fee Structure'!$AB$5))*(X71=OFFSET('Role Fee Structure'!$F$2,0,0,1,'Role Fee Structure'!$AB$4))*(D71>=OFFSET('Role Fee Structure'!$D$3,0,0,'Role Fee Structure'!$AB$5))*(D71<=OFFSET('Role Fee Structure'!$E$3,0,0,'Role Fee Structure'!$AB$5))*(OFFSET('Role Fee Structure'!$F$3,0,0,'Role Fee Structure'!$AB$5,'Role Fee Structure'!$AB$4)))) -> 220 | G71: =IF(C71="", " ",$E71*$F71) -> 385 | L71: =$A$30 -> Process and Grant: | W71: Financial Year | X71: =TEXT(IF(MONTH(D71)>6,YEAR(D71)+1,YEAR(D71)),"####") -> 2017 | Z71: Role Type | AA71: =SUMPRODUCT((C71=OFFSET('Names of Officers'!$B$4,0,0,'Names of Officers'!$AB$6))*(D71>=OFFSET('Names of Officers'!$D$4,0,0,'Names of Officers'!$AB$6))*(D71<=OFFSET('Names of Officers'!$E$4,0,0,'Names of Officers'!$AB$6))*(OFFSET('Names of Officers'!$F$4,0,0,'Names of Officers'!$AB$6))) -> 3
A72: Processing | C72: Tania McGrath | D72: 2017-04-11 | E72: 0.42 | F72: =IF(C72=""," ",SUMPRODUCT((AA72=OFFSET('Role Fee Structure'!$C$3,0,0,'Role Fee Structure'!$AB$5))*(X72=OFFSET('Role Fee Structure'!$F$2,0,0,1,'Role Fee Structure'!$AB$4))*(D72>=OFFSET('Role Fee Structure'!$D$3,0,0,'Role Fee Structure'!$AB$5))*(D72<=OFFSET('Role Fee Structure'!$E$3,0,0,'Role Fee Structure'!$AB$5))*(OFFSET('Role Fee Structure'!$F$3,0,0,'Role Fee Structure'!$AB$5,'Role Fee Structure'!$AB$4)))) -> 220 | G72: =IF(C72="", " ",$E72*$F72) -> 92.4 | L72: =$A$30 -> Process and Grant: | W72: Financial Year | X72: =TEXT(IF(MONTH(D72)>6,YEAR(D72)+1,YEAR(D72)),"####") -> 2017 | Z72: Role Type | AA72: =SUMPRODUCT((C72=OFFSET('Names of Officers'!$B$4,0,0,'Names of Officers'!$AB$6))*(D72>=OFFSET('Names of Officers'!$D$4,0,0,'Names of Officers'!$AB$6))*(D72<=OFFSET('Names of Officers'!$E$4,0,0,'Names of Officers'!$AB$6))*(OFFSET('Names of Officers'!$F$4,0,0,'Names of Officers'!$AB$6))) -> 3
A73: Processing | C73: Tania McGrath | D73: 2017-06-07 | E73: 0.25 | F73: =IF(C73=""," ",SUMPRODUCT((AA73=OFFSET('Role Fee Structure'!$C$3,0,0,'Role Fee Structure'!$AB$5))*(X73=OFFSET('Role Fee Structure'!$F$2,0,0,1,'Role Fee Structure'!$AB$4))*(D73>=OFFSET('Role Fee Structure'!$D$3,0,0,'Role Fee Structure'!$AB$5))*(D73<=OFFSET('Role Fee Structure'!$E$3,0,0,'Role Fee Structure'!$AB$5))*(OFFSET('Role Fee Structure'!$F$3,0,0,'Role Fee Structure'!$AB$5,'Role Fee Structure'!$AB$4)))) -> 220 | G73: =IF(C73="", " ",$E73*$F73) -> 55 | L73: =$A$30 -> Process and Grant: | W73: Financial Year | X73: =TEXT(IF(MONTH(D73)>6,YEAR(D73)+1,YEAR(D73)),"####") -> 2017 | Z73: Role Type | AA73: =SUMPRODUCT((C73=OFFSET('Names of Officers'!$B$4,0,0,'Names of Officers'!$AB$6))*(D73>=OFFSET('Names of Officers'!$D$4,0,0,'Names of Officers'!$AB$6))*(D73<=OFFSET('Names of Officers'!$E$4,0,0,'Names of Officers'!$AB$6))*(OFFSET('Names of Officers'!$F$4,0,0,'Names of Officers'!$AB$6))) -> 3
A74: RFI Processing | C74: Tania McGrath | D74: 2017-07-10 | E74: 0.5 | F74: =IF(C74=""," ",SUMPRODUCT((AA74=OFFSET('Role Fee Structure'!$C$3,0,0,'Role Fee Structure'!$AB$5))*(X74=OFFSET('Role Fee Structure'!$F$2,0,0,1,'Role Fee Structure'!$AB$4))*(D74>=OFFSET('Role Fee Structure'!$D$3,0,0,'Role Fee Structure'!$AB$5))*(D74<=OFFSET('Role Fee Structure'!$E$3,0,0,'Role Fee Structure'!$AB$5))*(OFFSET('Role Fee Structure'!$F$3,0,0,'Role Fee Structure'!$AB$5,'Role Fee Structure'!$AB$4)))) -> 210 | G74: =IF(C74="", " ",$E74*$F74) -> 105 | L74: =$A$30 -> Process and Grant: | W74: Financial Year | X74: =TEXT(IF(MONTH(D74)>6,YEAR(D74)+1,YEAR(D74)),"####") -> 2018 | Z74: Role Type | AA74: =SUMPRODUCT((C74=OFFSET('Names of Officers'!$B$4,0,0,'Names of Officers'!$AB$6))*(D74>=OFFSET('Names of Officers'!$D$4,0,0,'Names of Officers'!$AB$6))*(D74<=OFFSET('Names of Officers'!$E$4,0,0,'Names of Officers'!$AB$6))*(OFFSET('Names of Officers'!$F$4,0,0,'Names of Officers'!$AB$6))) -> 3
A75: RFI Processing | C75: Tania McGrath | D75: 2017-07-12 | E75: 0.5 | F75: =IF(C75=""," ",SUMPRODUCT((AA75=OFFSET('Role Fee Structure'!$C$3,0,0,'Role Fee Structure'!$AB$5))*(X75=OFFSET('Role Fee Structure'!$F$2,0,0,1,'Role Fee Structure'!$AB$4))*(D75>=OFFSET('Role Fee Structure'!$D$3,0,0,'Role Fee Structure'!$AB$5))*(D75<=OFFSET('Role Fee Structure'!$E$3,0,0,'Role Fee Structure'!$AB$5))*(OFFSET('Role Fee Structure'!$F$3,0,0,'Role Fee Structure'!$AB$5,'Role Fee Structure'!$AB$4)))) -> 210 | G75: =IF(C75="", " ",$E75*$F75) -> 105 | L75: =$A$30 -> Process and Grant: | W75: Financial Year | X75: =TEXT(IF(MONTH(D75)>6,YEAR(D75)+1,YEAR(D75)),"####") -> 2018 | Z75: Role Type | AA75: =SUMPRODUCT((C75=OFFSET('Names of Officers'!$B$4,0,0,'Names of Officers'!$AB$6))*(D75>=OFFSET('Names of Officers'!$D$4,0,0,'Names of Officers'!$AB$6))*(D75<=OFFSET('Names of Officers'!$E$4,0,0,'Names of Officers'!$AB$6))*(OFFSET('Names of Officers'!$F$4,0,0,'Names of Officers'!$AB$6))) -> 3
A76: RFI Processing | C76: Tania McGrath | D76: 2017-07-13 | E76: 2.03 | F76: =IF(C76=""," ",SUMPRODUCT((AA76=OFFSET('Role Fee Structure'!$C$3,0,0,'Role Fee Structure'!$AB$5))*(X76=OFFSET('Role Fee Structure'!$F$2,0,0,1,'Role Fee Structure'!$AB$4))*(D76>=OFFSET('Role Fee Structure'!$D$3,0,0,'Role Fee Structure'!$AB$5))*(D76<=OFFSET('Role Fee Structure'!$E$3,0,0,'Role Fee Structure'!$AB$5))*(OFFSET('Role Fee Structure'!$F$3,0,0,'Role Fee Structure'!$AB$5,'Role Fee Structure'!$AB$4)))) -> 210 | G76: =IF(C76="", " ",$E76*$F76) -> 426.3 | L76: =$A$30 -> Process and Grant: | W76: Financial Year | X76: =TEXT(IF(MONTH(D76)>6,YEAR(D76)+1,YEAR(D76)),"####") -> 2018 | Z76: Role Type | AA76: =SUMPRODUCT((C76=OFFSET('Names of Officers'!$B$4,0,0,'Names of Officers'!$AB$6))*(D76>=OFFSET('Names of Officers'!$D$4,0,0,'Names of Officers'!$AB$6))*(D76<=OFFSET('Names of Officers'!$E$4,0,0,'Names of Officers'!$AB$6))*(OFFSET('Names of Officers'!$F$4,0,0,'Names of Officers'!$AB$6))) -> 3
A77: RFI Processing | C77: Tania McGrath | D77: 2017-07-13 | E77: 0.53 | F77: =IF(C77=""," ",SUMPRODUCT((AA77=OFFSET('Role Fee Structure'!$C$3,0,0,'Role Fee Structure'!$AB$5))*(X77=OFFSET('Role Fee Structure'!$F$2,0,0,1,'Role Fee Structure'!$AB$4))*(D77>=OFFSET('Role Fee Structure'!$D$3,0,0,'Role Fee Structure'!$AB$5))*(D77<=OFFSET('Role Fee Structure'!$E$3,0,0,'Role Fee Structure'!$AB$5))*(OFFSET('Role Fee Structure'!$F$3,0,0,'Role Fee Structure'!$AB$5,'Role Fee Structure'!$AB$4)))) -> 210 | G77: =IF(C77="", " ",$E77*$F77) -> 111.3 | L77: =$A$30 -> Process and Grant: | W77: Financial Year | X77: =TEXT(IF(MONTH(D77)>6,YEAR(D77)+1,YEAR(D77)),"####") -> 2018 | Z77: Role Type | AA77: =SUMPRODUCT((C77=OFFSET('Names of Officers'!$B$4,0,0,'Names of Officers'!$AB$6))*(D77>=OFFSET('Names of Officers'!$D$4,0,0,'Names of Officers'!$AB$6))*(D77<=OFFSET('Names of Officers'!$E$4,0,0,'Names of Officers'!$AB$6))*(OFFSET('Names of Officers'!$F$4,0,0,'Names of Officers'!$AB$6))) -> 3
A78: RFI Processing | C78: Tania McGrath | D78: 2017-07-13 | E78: 1 | F78: =IF(C78=""," ",SUMPRODUCT((AA78=OFFSET('Role Fee Structure'!$C$3,0,0,'Role Fee Structure'!$AB$5))*(X78=OFFSET('Role Fee Structure'!$F$2,0,0,1,'Role Fee Structure'!$AB$4))*(D78>=OFFSET('Role Fee Structure'!$D$3,0,0,'Role Fee Structure'!$AB$5))*(D78<=OFFSET('Role Fee Structure'!$E$3,0,0,'Role Fee Structure'!$AB$5))*(OFFSET('Role Fee Structure'!$F$3,0,0,'Role Fee Structure'!$AB$5,'Role Fee Structure'!$AB$4)))) -> 210 | G78: =IF(C78="", " ",$E78*$F78) -> 210 | L78: =$A$30 -> Process and Grant: | W78: Financial Year | X78: =TEXT(IF(MONTH(D78)>6,YEAR(D78)+1,YEAR(D78)),"####") -> 2018 | Z78: Role Type | AA78: =SUMPRODUCT((C78=OFFSET('Names of Officers'!$B$4,0,0,'Names of Officers'!$AB$6))*(D78>=OFFSET('Names of Officers'!$D$4,0,0,'Names of Officers'!$AB$6))*(D78<=OFFSET('Names of Officers'!$E$4,0,0,'Names of Officers'!$AB$6))*(OFFSET('Names of Officers'!$F$4,0,0,'Names of Officers'!$AB$6))) -> 3
A79: RFI Processing | C79: Tania McGrath | D79: 2017-07-13 | E79: 0.75 | F79: =IF(C79=""," ",SUMPRODUCT((AA79=OFFSET('Role Fee Structure'!$C$3,0,0,'Role Fee Structure'!$AB$5))*(X79=OFFSET('Role Fee Structure'!$F$2,0,0,1,'Role Fee Structure'!$AB$4))*(D79>=OFFSET('Role Fee Structure'!$D$3,0,0,'Role Fee Structure'!$AB$5))*(D79<=OFFSET('Role Fee Structure'!$E$3,0,0,'Role Fee Structure'!$AB$5))*(OFFSET('Role Fee Structure'!$F$3,0,0,'Role Fee Structure'!$AB$5,'Role Fee Structure'!$AB$4)))) -> 210 | G79: =IF(C79="", " ",$E79*$F79) -> 157.5 | L79: =$A$30 -> Process and Grant: | W79: Financial Year | X79: =TEXT(IF(MONTH(D79)>6,YEAR(D79)+1,YEAR(D79)),"####") -> 2018 | Z79: Role Type | AA79: =SUMPRODUCT((C79=OFFSET('Names of Officers'!$B$4,0,0,'Names of Officers'!$AB$6))*(D79>=OFFSET('Names of Officers'!$D$4,0,0,'Names of Officers'!$AB$6))*(D79<=OFFSET('Names of Officers'!$E$4,0,0,'Names of Officers'!$AB$6))*(OFFSET('Names of Officers'!$F$4,0,0,'Names of Officers'!$AB$6))) -> 3
A80: RFI Processing | C80: Tania McGrath | D80: 2017-07-13 | E80: 0.92 | F80: =IF(C80=""," ",SUMPRODUCT((AA80=OFFSET('Role Fee Structure'!$C$3,0,0,'Role Fee Structure'!$AB$5))*(X80=OFFSET('Role Fee Structure'!$F$2,0,0,1,'Role Fee Structure'!$AB$4))*(D80>=OFFSET('Role Fee Structure'!$D$3,0,0,'Role Fee Structure'!$AB$5))*(D80<=OFFSET('Role Fee Structure'!$E$3,0,0,'Role Fee Structure'!$AB$5))*(OFFSET('Role Fee Structure'!$F$3,0,0,'Role Fee Structure'!$AB$5,'Role Fee Structure'!$AB$4)))) -> 210 | G80: =IF(C80="", " ",$E80*$F80) -> 193.2 | L80: =$A$30 -> Process and Grant: | W80: Financial Year | X80: =TEXT(IF(MONTH(D80)>6,YEAR(D80)+1,YEAR(D80)),"####") -> 2018 | Z80: Role Type | AA80: =SUMPRODUCT((C80=OFFSET('Names of Officers'!$B$4,0,0,'Names of Officers'!$AB$6))*(D80>=OFFSET('Names of Officers'!$D$4,0,0,'Names of Officers'!$AB$6))*(D80<=OFFSET('Names of Officers'!$E$4,0,0,'Names of Officers'!$AB$6))*(OFFSET('Names of Officers'!$F$4,0,0,'Names of Officers'!$AB$6))) -> 3
A81: Processing | C81: Tania McGrath | D81: 2017-07-14 | E81: 0.17 | F81: =IF(C81=""," ",SUMPRODUCT((AA81=OFFSET('Role Fee Structure'!$C$3,0,0,'Role Fee Structure'!$AB$5))*(X81=OFFSET('Role Fee Structure'!$F$2,0,0,1,'Role Fee Structure'!$AB$4))*(D81>=OFFSET('Role Fee Structure'!$D$3,0,0,'Role Fee Structure'!$AB$5))*(D81<=OFFSET('Role Fee Structure'!$E$3,0,0,'Role Fee Structure'!$AB$5))*(OFFSET('Role Fee Structure'!$F$3,0,0,'Role Fee Structure'!$AB$5,'Role Fee Structure'!$AB$4)))) -> 210 | G81: =IF(C81="", " ",$E81*$F81) -> 35.7 | L81: =$A$30 -> Process and Grant: | W81: Financial Year | X81: =TEXT(IF(MONTH(D81)>6,YEAR(D81)+1,YEAR(D81)),"####") -> 2018 | Z81: Role Type | AA81: =SUMPRODUCT((C81=OFFSET('Names of Officers'!$B$4,0,0,'Names of Officers'!$AB$6))*(D81>=OFFSET('Names of Officers'!$D$4,0,0,'Names of Officers'!$AB$6))*(D81<=OFFSET('Names of Officers'!$E$4,0,0,'Names of Officers'!$AB$6))*(OFFSET('Names of Officers'!$F$4,0,0,'Names of Officers'!$AB$6))) -> 3
A82: RFI Processing | C82: Tania McGrath | D82: 2017-07-14 | E82: 0.58 | F82: =IF(C82=""," ",SUMPRODUCT((AA82=OFFSET('Role Fee Structure'!$C$3,0,0,'Role Fee Structure'!$AB$5))*(X82=OFFSET('Role Fee Structure'!$F$2,0,0,1,'Role Fee Structure'!$AB$4))*(D82>=OFFSET('Role Fee Structure'!$D$3,0,0,'Role Fee Structure'!$AB$5))*(D82<=OFFSET('Role Fee Structure'!$E$3,0,0,'Role Fee Structure'!$AB$5))*(OFFSET('Role Fee Structure'!$F$3,0,0,'Role Fee Structure'!$AB$5,'Role Fee Structure'!$AB$4)))) -> 210 | G82: =IF(C82="", " ",$E82*$F82) -> 121.8 | L82: =$A$30 -> Process and Grant: | W82: Financial Year | X82: =TEXT(IF(MONTH(D82)>6,YEAR(D82)+1,YEAR(D82)),"####") -> 2018 | Z82: Role Type | AA82: =SUMPRODUCT((C82=OFFSET('Names of Officers'!$B$4,0,0,'Names of Officers'!$AB$6))*(D82>=OFFSET('Names of Officers'!$D$4,0,0,'Names of Officers'!$AB$6))*(D82<=OFFSET('Names of Officers'!$E$4,0,0,'Names of Officers'!$AB$6))*(OFFSET('Names of Officers'!$F$4,0,0,'Names of Officers'!$AB$6))) -> 3
A83: RFI Processing | C83: Tania McGrath | D83: 2017-07-17 | E83: 0.17 | F83: =IF(C83=""," ",SUMPRODUCT((AA83=OFFSET('Role Fee Structure'!$C$3,0,0,'Role Fee Structure'!$AB$5))*(X83=OFFSET('Role Fee Structure'!$F$2,0,0,1,'Role Fee Structure'!$AB$4))*(D83>=OFFSET('Role Fee Structure'!$D$3,0,0,'Role Fee Structure'!$AB$5))*(D83<=OFFSET('Role Fee Structure'!$E$3,0,0,'Role Fee Structure'!$AB$5))*(OFFSET('Role Fee Structure'!$F$3,0,0,'Role Fee Structure'!$AB$5,'Role Fee Structure'!$AB$4)))) -> 210 | G83: =IF(C83="", " ",$E83*$F83) -> 35.7 | L83: =$A$30 -> Process and Grant: | W83: Financial Year | X83: =TEXT(IF(MONTH(D83)>6,YEAR(D83)+1,YEAR(D83)),"####") -> 2018 | Z83: Role Type | AA83: =SUMPRODUCT((C83=OFFSET('Names of Officers'!$B$4,0,0,'Names of Officers'!$AB$6))*(D83>=OFFSET('Names of Officers'!$D$4,0,0,'Names of Officers'!$AB$6))*(D83<=OFFSET('Names of Officers'!$E$4,0,0,'Names of Officers'!$AB$6))*(OFFSET('Names of Officers'!$F$4,0,0,'Names of Officers'!$AB$6))) -> 3
A84: RFI Processing | C84: Tania McGrath | D84: 2017-07-31 | E84: 1.08 | F84: =IF(C84=""," ",SUMPRODUCT((AA84=OFFSET('Role Fee Structure'!$C$3,0,0,'Role Fee Structure'!$AB$5))*(X84=OFFSET('Role Fee Structure'!$F$2,0,0,1,'Role Fee Structure'!$AB$4))*(D84>=OFFSET('Role Fee Structure'!$D$3,0,0,'Role Fee Structure'!$AB$5))*(D84<=OFFSET('Role Fee Structure'!$E$3,0,0,'Role Fee Structure'!$AB$5))*(OFFSET('Role Fee Structure'!$F$3,0,0,'Role Fee Structure'!$AB$5,'Role Fee Structure'!$AB$4)))) -> 210 | G84: =IF(C84="", " ",$E84*$F84) -> 226.8 | L84: =$A$30 -> Process and Grant: | W84: Financial Year | X84: =TEXT(IF(MONTH(D84)>6,YEAR(D84)+1,YEAR(D84)),"####") -> 2018 | Z84: Role Type | AA84: =SUMPRODUCT((C84=OFFSET('Names of Officers'!$B$4,0,0,'Names of Officers'!$AB$6))*(D84>=OFFSET('Names of Officers'!$D$4,0,0,'Names of Officers'!$AB$6))*(D84<=OFFSET('Names of Officers'!$E$4,0,0,'Names of Officers'!$AB$6))*(OFFSET('Names of Officers'!$F$4,0,0,'Names of Officers'!$AB$6))) -> 3
A85: RFI Processing | C85: Tania McGrath | D85: 2017-08-02 | E85: 0.5 | F85: =IF(C85=""," ",SUMPRODUCT((AA85=OFFSET('Role Fee Structure'!$C$3,0,0,'Role Fee Structure'!$AB$5))*(X85=OFFSET('Role Fee Structure'!$F$2,0,0,1,'Role Fee Structure'!$AB$4))*(D85>=OFFSET('Role Fee Structure'!$D$3,0,0,'Role Fee Structure'!$AB$5))*(D85<=OFFSET('Role Fee Structure'!$E$3,0,0,'Role Fee Structure'!$AB$5))*(OFFSET('Role Fee Structure'!$F$3,0,0,'Role Fee Structure'!$AB$5,'Role Fee Structure'!$AB$4)))) -> 210 | G85: =IF(C85="", " ",$E85*$F85) -> 105 | L85: =$A$30 -> Process and Grant: | W85: Financial Year | X85: =TEXT(IF(MONTH(D85)>6,YEAR(D85)+1,YEAR(D85)),"####") -> 2018 | Z85: Role Type | AA85: =SUMPRODUCT((C85=OFFSET('Names of Officers'!$B$4,0,0,'Names of Officers'!$AB$6))*(D85>=OFFSET('Names of Officers'!$D$4,0,0,'Names of Officers'!$AB$6))*(D85<=OFFSET('Names of Officers'!$E$4,0,0,'Names of Officers'!$AB$6))*(OFFSET('Names of Officers'!$F$4,0,0,'Names of Officers'!$AB$6))) -> 3
A86: RFI Processing | C86: Tania McGrath | D86: 2017-08-04 | E86: 0.33 | F86: =IF(C86=""," ",SUMPRODUCT((AA86=OFFSET('Role Fee Structure'!$C$3,0,0,'Role Fee Structure'!$AB$5))*(X86=OFFSET('Role Fee Structure'!$F$2,0,0,1,'Role Fee Structure'!$AB$4))*(D86>=OFFSET('Role Fee Structure'!$D$3,0,0,'Role Fee Structure'!$AB$5))*(D86<=OFFSET('Role Fee Structure'!$E$3,0,0,'Role Fee Structure'!$AB$5))*(OFFSET('Role Fee Structure'!$F$3,0,0,'Role Fee Structure'!$AB$5,'Role Fee Structure'!$AB$4)))) -> 210 | G86: =IF(C86="", " ",$E86*$F86) -> 69.3 | L86: =$A$30 -> Process and Grant: | W86: Financial Year | X86: =TEXT(IF(MONTH(D86)>6,YEAR(D86)+1,YEAR(D86)),"####") -> 2018 | Z86: Role Type | AA86: =SUMPRODUCT((C86=OFFSET('Names of Officers'!$B$4,0,0,'Names of Officers'!$AB$6))*(D86>=OFFSET('Names of Officers'!$D$4,0,0,'Names of Officers'!$AB$6))*(D86<=OFFSET('Names of Officers'!$E$4,0,0,'Names of Officers'!$AB$6))*(OFFSET('Names of Officers'!$F$4,0,0,'Names of Officers'!$AB$6))) -> 3
A87: RFI Processing | C87: Tania McGrath | D87: 2017-08-15 | E87: 0.5 | F87: =IF(C87=""," ",SUMPRODUCT((AA87=OFFSET('Role Fee Structure'!$C$3,0,0,'Role Fee Structure'!$AB$5))*(X87=OFFSET('Role Fee Structure'!$F$2,0,0,1,'Role Fee Structure'!$AB$4))*(D87>=OFFSET('Role Fee Structure'!$D$3,0,0,'Role Fee Structure'!$AB$5))*(D87<=OFFSET('Role Fee Structure'!$E$3,0,0,'Role Fee Structure'!$AB$5))*(OFFSET('Role Fee Structure'!$F$3,0,0,'Role Fee Structure'!$AB$5,'Role Fee Structure'!$AB$4)))) -> 210 | G87: =IF(C87="", " ",$E87*$F87) -> 105 | L87: =$A$30 -> Process and Grant: | W87: Financial Year | X87: =TEXT(IF(MONTH(D87)>6,YEAR(D87)+1,YEAR(D87)),"####") -> 2018 | Z87: Role Type | AA87: =SUMPRODUCT((C87=OFFSET('Names of Officers'!$B$4,0,0,'Names of Officers'!$AB$6))*(D87>=OFFSET('Names of Officers'!$D$4,0,0,'Names of Officers'!$AB$6))*(D87<=OFFSET('Names of Officers'!$E$4,0,0,'Names of Officers'!$AB$6))*(OFFSET('Names of Officers'!$F$4,0,0,'Names of Officers'!$AB$6))) -> 3
A88: RFI Processing | C88: Tania McGrath | D88: 2017-08-15 | E88: 0.75 | F88: =IF(C88=""," ",SUMPRODUCT((AA88=OFFSET('Role Fee Structure'!$C$3,0,0,'Role Fee Structure'!$AB$5))*(X88=OFFSET('Role Fee Structure'!$F$2,0,0,1,'Role Fee Structure'!$AB$4))*(D88>=OFFSET('Role Fee Structure'!$D$3,0,0,'Role Fee Structure'!$AB$5))*(D88<=OFFSET('Role Fee Structure'!$E$3,0,0,'Role Fee Structure'!$AB$5))*(OFFSET('Role Fee Structure'!$F$3,0,0,'Role Fee Structure'!$AB$5,'Role Fee Structure'!$AB$4)))) -> 210 | G88: =IF(C88="", " ",$E88*$F88) -> 157.5 | L88: =$A$30 -> Process and Grant: | W88: Financial Year | X88: =TEXT(IF(MONTH(D88)>6,YEAR(D88)+1,YEAR(D88)),"####") -> 2018 | Z88: Role Type | AA88: =SUMPRODUCT((C88=OFFSET('Names of Officers'!$B$4,0,0,'Names of Officers'!$AB$6))*(D88>=OFFSET('Names of Officers'!$D$4,0,0,'Names of Officers'!$AB$6))*(D88<=OFFSET('Names of Officers'!$E$4,0,0,'Names of Officers'!$AB$6))*(OFFSET('Names of Officers'!$F$4,0,0,'Names of Officers'!$AB$6))) -> 3
A89: End Administration | C89: Mel Lawson | D89: 2017-08-17 | E89: 1 | F89: =IF(C89=""," ",SUMPRODUCT((AA89=OFFSET('Role Fee Structure'!$C$3,0,0,'Role Fee Structure'!$AB$5))*(X89=OFFSET('Role Fee Structure'!$F$2,0,0,1,'Role Fee Structure'!$AB$4))*(D89>=OFFSET('Role Fee Structure'!$D$3,0,0,'Role Fee Structure'!$AB$5))*(D89<=OFFSET('Role Fee Structure'!$E$3,0,0,'Role Fee Structure'!$AB$5))*(OFFSET('Role Fee Structure'!$F$3,0,0,'Role Fee Structure'!$AB$5,'Role Fee Structure'!$AB$4)))) -> 120 | G89: =IF(C89="", " ",$E89*$F89) -> 120 | L89: =$A$30 -> Process and Grant: | W89: Financial Year | X89: =TEXT(IF(MONTH(D89)>6,YEAR(D89)+1,YEAR(D89)),"####") -> 2018 | Z89: Role Type | AA89: =SUMPRODUCT((C89=OFFSET('Names of Officers'!$B$4,0,0,'Names of Officers'!$AB$6))*(D89>=OFFSET('Names of Officers'!$D$4,0,0,'Names of Officers'!$AB$6))*(D89<=OFFSET('Names of Officers'!$E$4,0,0,'Names of Officers'!$AB$6))*(OFFSET('Names of Officers'!$F$4,0,0,'Names of Officers'!$AB$6))) -> 59
D90: Issuing Consent: | F90: Applicable | G90: 30 | L90: =$A$30 -> Process and Grant:
D91: Fixed Administration Fee: | F91: Applicable | G91: =VLOOKUP(F91,FixedAdminFee[#All],2,0) -> 175 | L91: Process and Grant:
D92: Certificate of Title: | E92: 0 | F92: Not Applicable | G92: =IF(AND(F92="Applicable",E92<1),"CHECK",E92*X92) -> 0 | L92: Process and Grant: | X92: =VLOOKUP(F92,CT[#All],2,0) -> 0
D93: External Contractors or Consultants: | F93: Not Applicable | G93: =VLOOKUP(F93,ExtContract[#All],2,0) -> 0 | L93: Process and Grant:
F94: Total Fee: | G94: =SUMIF($L:$L,$A$30,$G:$G) -> 9958.84
A96: Levies:
C97: Value of Work: | D97: 140000 | W97: Charge Rate | X97: Threshold: | Y97: 20000
A98: Accreditation Levy: | D98: =ROUNDDOWN(D97,-3)*$W98 -> 42 | E98: ($0.30 for every $1,000 of estimated value) | L98: =$A$96 -> Levies: | W98: 0.0003
A99: Building Levy (MBIE): | D99: =IF(D97<$Y$97,"$0.00",ROUNDUP(D97,-3)*$W99) -> 281.4 | E99: ($2.01 per $1,000 (or part thereof) of building work valued over $20,000) | L99: Levies: | W99: 0.00201
A100: Building Research Levy (BRANZ): | D100: =IF(D97<$Y$97,"$0.00",ROUNDUP(D97,-3)*$W100) -> 140 | E100: ($1 per $1,000 (or part thereof) of building work valued over $20,000) | L100: Levies: | W100: 0.001
E101: Total Fee: | G101: =SUMIF($L:$L,$A$96,$D:$D) -> 463.4
A103: Inspections:
A104: Type: | B104: Comments: | C104: Number of Inspections: | E104: Cost Per Inspection: | G104: Fee:
A105: Commercial | C105: 9 | E105: 255 | G105: =IF(OR(AND(A105="Residential", C105=0),AND(A105="Commercial", C105=0)),"CHECK",C105*E105) -> 2295 | L105: =$A$103 -> Inspections:
E106: Total Fee: | G106: =SUMIF($L:$L,$A$103,$G:$G) -> 2295
A108: Christchurch City Council Fees:
A109: Fee Type: | E109: Total Quantity: | F109: Rate Per Quantity | G109: Fee:
A110: Code Compliance Certificate | B110: Commercial 1-2, Residential multi-unit or alterations to a commercial 3 less than/equal to $500,000 | E110: 1 | F110: =VLOOKUP(B110,CCC[#All],2,0) -> 488 | G110: =E110*F110 -> 488 | L110: =$A$108 -> Christchurch City Council Fees:
A111: Electronic File Management Fee | B111: Applicable | G111: =VLOOKUP(B111,ElectronicFile[#All],2,0) -> 52 | L111: =$A$108 -> Christchurch City Council Fees:
A112: No CCC Connection | E112: 0 | F112: =VLOOKUP(A112,OptCon[#All],2,0) -> 0 | G112: =IF(OR(AND(A112="Standard Water Connection:", E112=0),AND(A112="Stormwater Opening:", E112=0),AND(A112="Sewer Opening:", E112=0),AND(A112="Vehicle Crossing Inspection:", E112=0))," CHECK",E112*F112) -> 0 | L112: Christchurch City Council Fees:
A113: NZ Fire Service Review: | G113: 603.75 | L113: Christchurch City Council Fees:
A114: Compliance Schedule: | G114: 140 | L114: Christchurch City Council Fees:
E115: Total Fee: | G115: =SUMIF($L:$L,$A$108,$G:$G) -> 1283.75
A117: Subtotal (inc GST): | G117: =SUM(G14+G23+G28+G94+G101+G106+G115) -> 14613.74
A119: Less Deposit Paid (inc GST): | G119: 4000
A121: Final Total Invoice (inc GST): | G121: =SUM(G14,G23,G28,G94,G101,G106,G115-G119) -> 10613.74
B127: Fee Summary
B129: Accept: | F129: =G14 -> 109.5
B131: PIM/Development Check: | F131: =G23 -> 330.25
B133: Pre-acceptance Technical Check: | F133: =G28 -> 173
B135: Process and Grant: | F135: =G94 -> 9958.84
B137: Inspections: | F137: =G106 -> 2295
B139: Christchurch City Council Fees: | F139: =G115 -> 1283.75
B140: Note: This fee is a summary only, please refer to the council fees section for a breakdown of the fees
B142: Accreditation Levy | F142: =D98 -> 42
B143: Building Levy | F143: =D99 -> 281.4
B144: Building Research Levy | F144: =D100 -> 140
B146: Subtotal (inc GST): | F146: =G117 -> 14613.74
B148: Less Deposit Paid (inc GST): | F148: =G119 -> 4000
B150: Final Total Invoice (inc GST): | F150: =G121 -> 10613.74

Sheet PIM Only Consent Fee Summary
A3: Consent Fee Summary (PIM Only)
A5: Consent Reference Number: | B5: BCN/201X/XXXX | C5: Consent Address: | D5: ENTER ADDRESS | F5: B103 LU: 01.07.16 LR: 01.07.16 v20
A7: PIM/Development Check
A8: Type: | B8: Comments: | C8: Officer Name: | D8: Date: | E8: Hours Worked: | F8: Rate Per Hour: | G8: Fee:
A9: < Please Select > | C9: Please Select | D9: 2015-07-01 | E9: 0 | F9: =IF(C9=""," ",SUMPRODUCT((AA9=OFFSET('Role Fee Structure'!$C$3,0,0,'Role Fee Structure'!$AB$5))*(X9=OFFSET('Role Fee Structure'!$F$2,0,0,1,'Role Fee Structure'!$AB$4))*(D9>=OFFSET('Role Fee Structure'!$D$3,0,0,'Role Fee Structure'!$AB$5))*(D9<=OFFSET('Role Fee Structure'!$E$3,0,0,'Role Fee Structure'!$AB$5))*(OFFSET('Role Fee Structure'!$F$3,0,0,'Role Fee Structure'!$AB$5,'Role Fee Structure'!$AB$4)))) -> 0 | G9: =IF(C9="", " ",$E9*$F9) -> 0 | L9: =$A$7 -> PIM/Development Check | W9: Financial Year | X9: =TEXT(IF(MONTH(D9)>6,YEAR(D9)+1,YEAR(D9)),"####") -> 2016 | Z9: Role Type | AA9: =SUMPRODUCT((C9=OFFSET('Names of Officers'!$B$4,0,0,'Names of Officers'!$AB$6))*(D9>=OFFSET('Names of Officers'!$D$4,0,0,'Names of Officers'!$AB$6))*(D9<=OFFSET('Names of Officers'!$E$4,0,0,'Names of Officers'!$AB$6))*(OFFSET('Names of Officers'!$F$4,0,0,'Names of Officers'!$AB$6))) -> 0
D10: Certificate of Title: | E10: 0 | F10: Not Applicable | G10: =IF(AND(F10="Applicable",E10<1),"CHECK",E10*X10) -> 0 | L10: =$A$7 -> PIM/Development Check | X10: =VLOOKUP(F10,CT[#All],2,0) -> 0
D11: PIM Coordinator Sign Off | F11: Applicable | G11: =VLOOKUP(F11,PIMCOORD[#All],2,0) -> 28.75 | L11: PIM/Development Check
D12: Electronic File Management Fee | F12: Applicable | G12: =VLOOKUP(F12,ElectronicFile[#All],2,0) -> 52 | L12: PIM/Development Check
D13: Total Fee: | G13: =SUMIF($L:$L,$A$7,$G:$G) -> 80.75
A17: Less Deposit Paid (inc GST): | G17: 0
A20: Total Invoice (inc GST): | G20: =SUM(G13-G17) -> 80.75

Sheet Scanning | Printing Calculator
A3: Scanning
A4: Received:
A5: No. of pages: A4/A3 | B5: 0
A6: No. of pages: A2/Larger | B6: 0
A9: Printing
A10: No. of pages: A4 | B10: 0
A11: No. of pages: A3 | B11: 0
A12: No. of pages: A2 | B12: 0
A13: No. of pages: A1 | B13: 0
A16: Total Scanning Charge: | B16: ='Scanning Calculations'!C8 -> 0
A17: Total Printing Charge: | B17: ='Scanning Calculations'!O8 -> 0

Sheet Connect Amendment Input Calcs
B1: (For Connect Input Only) Levies:
C3: New levies | D3: Original levies | E3: Amendment 1 levies | F3: Amendment 2 levies | G3: Amendment 3 levies | H3: Total previous levies | I3: Difference (Adjust by these amounts)
B4: Accreditation Levy | H4: =SUM(D4:G4) -> 0 | I4: =C4-H4 -> 0
B5: Building Levy | H5: =SUM(D5:G5) -> 0 | I5: =C5-H5 -> 0
B6: Building Research Levy | H6: 0 | I6: 0

Sheet Scanning Calculations (hidden)
A1: DO NOT EDIT THE RED CELLS | M1: Printing Calculations
A3: Changes to the Scanning Fees can be made by editing the yellow cells. These changes will automatically feed through to the calculation formulae. | M3: A4 | N3: ='Scanning | Printing Calculator'!B10 -> 0 | O3: =N3*0.2 -> 0
M4: A3 | N4: ='Scanning | Printing Calculator'!B11 -> 0 | O4: =N4*2 -> 0
B5: No. of pages | E5: Scanning Fees | M5: A2 | N5: ='Scanning | Printing Calculator'!B12 -> 0 | O5: =N5*3.5 -> 0
B6: A3/A4 | C6: ='Scanning | Printing Calculator'!B5 -> 0 | E6: No. of pages | F6: Size | G6: Cost (inc. GST) | M6: A1 | N6: ='Scanning | Printing Calculator'!B13 -> 0 | O6: =N6*6.5 -> 0
B7: A2/Larger | C7: ='Scanning | Printing Calculator'!B6 -> 0 | E7: 1 to 20 | F7: A3/A4 | G7: 0
B8: TOTAL COST | C8: =C10+C14 -> 0 | E8: 21 to 40 | F8: A3/A4 | G8: 29.5 | M8: Total | O8: =SUM(O3:O6) -> 0
E9: 41 to 60 | F9: A3/A4 | G9: 33.5
B10: Calculations | C10: =IF(AND(C6>0,C6<21),G7,IF(AND(C6>20,C6<41),G8,IF(AND(C6>40,C6<61),G9,IF(AND(C6>60,C6<81),G10,IF(AND(C6>80,C6<101),G11,IF(AND(C6>100,C6<151),G12,IF(AND(C6>150,C6<251),G13,C11))))))) -> 0 | E10: 61 to 80 | F10: A3/A4 | G10: 37.9
B11: A3/A4 | C11: =IF(AND(C6>250,C6<351),G14,IF(AND(C6>350,C6<451),G15,IF(AND(C6>450,C6<551),G16,IF(AND(C6>550,C6<651),G17,IF(AND(C6>650,C6<751),G18,IF(AND(C6>750,C6<851),G19,IF(AND(C6>850,C6<951),G20,C12))))))) -> 0 | E11: 81 to 100 | F11: A3/A4 | G11: 42
C12: =IF(AND(C6>951),G21,0) -> 0 | E12: 101 to 150 | F12: A3/A4 | G12: 49.5
E13: 151 to 250 | F13: A3/A4 | G13: 70.5
B14: Calculations | C14: =IF(AND(C7>0,C7<21),G24,IF(AND(C7>20,C7<41),G25,IF(AND(C7>40,C7<61),G26,IF(AND(C7>60,C7<81),G27,IF(AND(C7>80,C7<101),G28,IF(AND(C7>100,C7<151),G29,IF(AND(C7>150,C7<251),G30,C15))))))) -> 0 | E14: 251 to 350 | F14: A3/A4 | G14: 141
B15: A2 or Larger | C15: =IF(AND(C7>250,C7<351),G31,IF(AND(C7>350,C7<451),G32,IF(AND(C7>450,C7<551),G33,IF(AND(C7>550,C7<651),G34,IF(AND(C7>650,C7<751),G35,IF(AND(C7>750,C7<851),G36,IF(AND(C7>850,C7<951),G37,C16))))))) -> 0 | E15: 351 to 450 | F15: A3/A4 | G15: 211.5
C16: =IF(AND(C7>951),G38,0) -> 0 | E16: 451 to 550 | F16: A3/A4 | G16: 282
E17: 551 to 650 | F17: A3/A4 | G17: 352.5
E18: 651 to 750 | F18: A3/A4 | G18: 423
E19: 751 to 850 | F19: A3/A4 | G19: 493.5
E20: 851 to 950 | F20: A3/A4 | G20: 564
E21: 951+ | F21: A3/A4 | G21: 634.5
E23: No. of pages | F23: Size | G23: Cost (inc. GST)
E24: 1 to 20 | F24: A2/Larger | G24: 27.5
E25: 21 to 40 | F25: A2/Larger | G25: 37.9
E26: 41 to 60 | F26: A2/Larger | G26: 59
E27: 61 to 80 | F27: A2/Larger | G27: 80
E28: 81 to 100 | F28: A2/Larger | G28: 100
E29: 101 to 150 | F29: A2/Larger | G29: 138
E30: 151 to 250 | F30: A2/Larger | G30: 160
E31: 251 to 350 | F31: A2/Larger | G31: 320
E32: 351 to 450 | F32: A2/Larger | G32: 480
E33: 451 to 550 | F33: A2/Larger | G33: 640
E34: 551 to 650 | F34: A2/Larger | G34: 800
E35: 651 to 750 | F35: A2/Larger | G35: 960
E36: 751 to 850 | F36: A2/Larger | G36: 1120
E37: 851 to 950 | F37: A2/Larger | G37: 1280
E38: 951+ | F38: A2/Larger | G38: 1440

Sheet Dropdowns (hidden)
A1: < Please Select > | C1: < Please Select > | E1: < Please Select > | G1: Inspection Type | H1: Charge | L1: IssueConsent | M1: Charge | P1: ItemNum | Q1: Charge
A2: Lodging | C2: Building (Hazards) Check | E2: Vetting | G2: < Please Select > | H2: 0 | L2: Applicable | M2: 28.75 | P2: < Please Select CCC Type> | Q2: 0
A3: Additional Information 1 | C3: Planning Check | E3: Communication | G3: Residential | H3: 190 | L3: Not Applicable | M3: 0 | P3: No Code Compliance Certificate | Q3: 0
A4: Additional Information 2 | C4: Drainage Report | E4: Processing | G4: Commercial | H4: 245 | P4: Residential solid or liquid fuel heater | Q4: 100
A5: Additional Information 3 | C5: PIM Administration | E5: RFI Processing | P5: Residential minor building work | Q5: 126
A6: Additional Information 4 | C6: Specialists | E6: Structural Engineer | L6: FixedAdminFee | M6: Charge | P6: Residential accessory buildings and residential alterations | Q6: 220
A7: Additional Information 5 | C7: Other | E7: Geotech Engineer | L7: Applicable | M7: 175 | P7: Residential new dwelling | Q7: 357
A8: Additional Information 6 | C8: Vetting | E8: Fire Engineer | L8: Not Applicable | M8: 0 | P8: Commercial 1-2, Residential multi-unit or alterations to a commercial 3 less than/equal to $500,000 | Q8: 488
A9: Additional Information 7 | C9: Admin | E9: Other Specialist Input | P9: Commercial 3 over $500,000 | Q9: 966
A10: Additional Information 8 | E10: Meeting
A11: Additional Information 9 | E11: Other
A12: Additional Information 10 | E12: End Administration | L12: CT | M12: Charge | P12: Type | Q12: Charge
A13: Additional Information 11 | E13: Granting | L13: Applicable | M13: 13.8 | P13: < Please Select Connections > | Q13: 0
A14: Additional Information 12 | L14: Not Applicable | M14: 0 | P14: No CCC Connection | Q14: 0
A15: Additional Information 13 | P15: Standard Water Connection: | Q15: 670
A16: Additional Information 14 | P16: Stormwater Opening: | Q16: 125
A17: Additional Information 15 | P17: Sewer Opening: | Q17: 245
A18: Additional Information 16 | L18: PIMCOORD | M18: Charge | P18: Vehicle Crossing Inspection: | Q18: 153
A19: Additional Information 17 | L19: Applicable | M19: 28.75
A20: Additional Information 18 | L20: Not Applicable | M20: 0 | P20: Type | Q20: Charge
A21: Additional Information 19 | P21: < Please Select Other Fees > | Q21: 0
A22: Additional Information 20 | L22: ExtContract | M22: Charge | P22: No Additional Fees | Q22: 0
L23: Applicable | M23: ENTER VALUE | P23: Electronic File Management: | Q23: 52
L24: Not Applicable | M24: 0 | P24: Compliance Schedule: | Q24: 140
P25: Section 73 (Hazards): | Q25: 420
L26: Electronic File | M26: Charge | P26: Section 75 (Multi Titles): | Q26: 420
L27: Applicable | M27: 52 | P27: Sewer Lateral Fee: | Q27: ENTER VALUE
L28: Not Applicable | M28: 0 | P28: NZ Fire Service Review: | Q28: ENTER VALUE
P29: Memo of Encumbrance: | Q29: ENTER VALUE
P30: Commercial/Residential PFVS: | Q30: ENTER VALUE
P31: Scanning Costs | Q31: ='Scanning Calculations'!C8 -> 0
P32: Printing Costs | Q32: ='Scanning Calculations'!O8 -> 0
P33: Other | Q33: ENTER VALUE

Sheet Names of Officers (hidden)
B2: F1 | C2: F2 | D2: F3 | E2: F4 | F2: F5 | G2: F6 | H2: F7 | I2: F8 | J2: F9 | K2: F10 | L2: F11 | M2: F12 | N2: F13 | O2: F14 | P2: F15 | Q2: F16 | R2: F17 | S2: F18 | T2: F19 | U2: F20 | V2: F21 | W2: F22 | X2: F23 | Y2: F24 | Z2: F25 | AA2: F26 | AB2: F27
B3: Name | C3: Role
B4: Please Select | F4: 0
B5: Aaron Edwards | C5: Planner 2/3 | D5: 2015-07-01 | E5: 3999-12-31 | F5: 37 | AA5: Num Dates | AB5: 1
B6: Aaron Harrison | C6: Opus Intermediate | D6: 2015-07-01 | E6: 3999-12-31 | F6: 26 | AA6: Num Rows | AB6: 414
B7: Aaron Haymes | C7: Snr Engineer/Team manager | D7: 2015-07-01 | E7: 3999-12-31 | F7: 6
B8: Abdul Musif | C8: Building Administrator | D8: 2015-07-01 | E8: 3999-12-31 | F8: 59
B9: Adam Modica | C9: PBO/Specialist Engineer | D9: 2015-07-01 | E9: 3999-12-31 | F9: 5
B10: Adam Wang | C10: BCO 1 | D10: 2015-07-01 | E10: 3999-12-31 | F10: 1
B11: Adelina Pop | C11: BCO 1 | D11: 2015-07-01 | E11: 3999-12-31 | F11: 1
B12: Adrian Cosby | C12: Drainage Site Audit 2 | D12: 2015-07-01 | E12: 3999-12-31 | F12: 51
B13: Adrienne Slattery | C13: Holmes Fire Experienced | D13: 2015-07-01 | E13: 2017-04-30 | F13: 19
B14: Adrienne Slattery | C14: Snr Engineer/Team manager | D14: 2017-05-01 | E14: 3999-12-31 | F14: 6
B15: Agnes van der Erf | C15: Building Administrator | D15: 2015-07-01 | E15: 3999-12-31 | F15: 59
B16: Al Wilson | C16: Opus Experienced | D16: 2015-07-01 | E16: 3999-12-31 | F16: 25
B17: Alan Wilson | C17: Opus Experienced | D17: 2015-07-01 | E17: 3999-12-31 | F17: 25
B18: Alie Nieuwenhuize | C18: Building Administrator | D18: 2015-07-01 | E18: 2017-01-25 | F18: 59
B19: Alie Nieuwenhuize | C19: Building Officers (BWOF) | D19: 2017-01-26 | E19: 3999-12-31 | F19: 79
B20: Alison Thompson | C20: PBO/Specialist Engineer | D20: 2015-07-01 | E20: 3999-12-31 | F20: 5
B21: Alistair Sharp | C21: Planner Snr/Subdivision Officer etc | D21: 2015-07-01 | E21: 3999-12-31 | F21: 38
B22: Allen Pranesh | C22: Building Administrator | D22: 2015-07-01 | E22: 3999-12-31 | F22: 59
B23: Amarana Furminger | C23: BCO 1 | D23: 2015-07-01 | E23: 2016-09-11 | F23: 1
B24: Amarana Furminger | C24: BCO 2 | D24: 2016-09-12 | E24: 3999-12-31 | F24: 2
B25: Amber Watson | C25: Building Administrator | D25: 2015-07-01 | E25: 3999-12-31 | F25: 59
B26: Amon Brown | C26: Planner 2/3 | D26: 2015-07-01 | E26: 3999-12-31 | F26: 37
B27: Amy Barney | C27: Building Administrator | D27: 2015-07-01 | E27: 3999-12-31 | F27: 59
B28: Amy Clark | C28: Building Administrator | D28: 2015-07-01 | E28: 2016-10-09 | F28: 59
B29: Amy Clark | C29: Planner 2/3 | D29: 2016-10-10 | E29: 2017-04-09 | F29: 37
B30: Amy Clark | C30: Building Administrator | D30: 2017-04-10 | E30: 2017-08-04 | F30: 59
B31: Amy Clark | C31: Planner 2/3 | D31: 2017-08-05 | E31: 3999-12-31 | F31: 37
B32: Amy Doherty | C32: BCO 2 | D32: 2016-09-12 | E32: 3999-12-31 | F32: 2
B33: Amy Law | C33: BCO 1 | D33: 2015-07-01 | E33: 2016-09-11 | F33: 1
B34: Amy Maxwell | C34: Planner 2/3 | D34: 2015-07-01 | E34: 3999-12-31 | F34: 37
B35: Ana de Jong | C35: BCO 2 | D35: 2015-07-01 | E35: 2016-04-10 | F35: 2
B36: Ana de Jong | C36: BCO 3 | D36: 2016-04-11 | E36: 3999-12-31 | F36: 3
B37: Andre Winkelman | C37: PBO/Specialist Engineer | D37: 2015-07-01 | E37: 3999-12-31 | F37: 5
B38: Andrei Cotiga | C38: Opus Experienced | D38: 2015-07-01 | E38: 3999-12-31 | F38: 25
B39: Andrew Dimock | C39: BCO 1 | D39: 2015-07-01 | E39: 2017-06-30 | F39: 1
B40: Andrew Dimock | C40: Vetting & Allocation | D40: 2017-07-01 | E40: 3999-12-31 | F40: 81
B41: Andrew Eames | C41: BCO 1 | D41: 2015-07-01 | E41: 3999-12-31 | F41: 1
B42: Andrew Eames | C42: BCO 3 | D42: 2016-09-12 | E42: 3999-12-31 | F42: 3
B43: Andrew Smith | C43: David Ogilvie | D43: 2015-07-01 | E43: 3999-12-31 | F43: 69
B44: Andrew Stewart | C44: Snr BCO/Specialists | D44: 2015-07-01 | E44: 2017-07-25 | F44: 4
B45: Andy Lee | C45: BCO 2 | D45: 2015-07-01 | E45: 2017-02-22 | F45: 2
B46: Andy Lee | C46: BCO 3 | D46: 2017-02-23 | E46: 3999-12-31 | F46: 3
B47: Angela O'Reilly | C47: Planner 2/3 | D47: 2015-07-01 | E47: 3999-12-31 | F47: 37
B48: Anne Edwards | C48: Building Administrator | D48: 2015-07-01 | E48: 3999-12-31 | F48: 59
B49: Aradhna Dutt | C49: BCO 2 | D49: 2015-07-01 | E49: 3999-12-31 | F49: 2
B50: Atheel Allos | C50: GHD Expert | D50: 2015-07-01 | E50: 3999-12-31 | F50: 12
B51: Aurecon Expert | C51: Aurecon Expert | D51: 2015-07-01 | E51: 3999-12-31 | F51: 8
B52: Aurecon Experienced | C52: Aurecon Experienced | D52: 2015-07-01 | E52: 3999-12-31 | F52: 9
B53: Avau Tito | C53: Building Administrator | D53: 2015-07-01 | E53: 3999-12-31 | F53: 59
B54: Azeema Aman | C54: Building Administrator | D54: 2015-07-01 | E54: 2016-05-01 | F54: 59
B55: Azeema Aman | C55: BCO 1 | D55: 2016-05-02 | E55: 2017-06-30 | F55: 1
B56: Azeema Aman | C56: Vetting & Allocation | D56: 2017-07-01 | E56: 3999-12-31 | F56: 81
B57: Banny Singh | C57: BCO 1 | D57: 2015-07-01 | E57: 2017-06-30 | F57: 1
B58: Banny Singh | C58: Vetting & Allocation | D58: 2017-07-01 | E58: 3999-12-31 | F58: 81
B59: Barbara Thomas | C59: Public Advice Officer | D59: 2015-07-01 | E59: 3999-12-31 | F59: 62
B60: Barbara Tomlinson | C60: Water Supply Plan Tec 2 | D60: 2015-07-01 | E60: 3999-12-31 | F60: 54
B61: Barry Hemming | C61: BCO 2 | D61: 2015-07-01 | E61: 3999-12-31 | F61: 2
B62: Bee Geok Chan | C62: BCO 1 | D62: 2015-07-01 | E62: 3999-12-31 | F62: 1
B63: Ben Healy | C63: Snr Engineer/Team manager | D63: 2015-07-01 | E63: 3999-12-31 | F63: 6
B64: Bill Dray | C64: PBO/Specialist Engineer | D64: 2015-07-01 | E64: 3999-12-31 | F64: 5
B65: Bill Harrington | C65: Planner 2/3 | D65: 2015-07-01 | E65: 3999-12-31 | F65: 37
B66: Biswadeep Ghosh | C66: WSP | D66: 2015-07-01 | E66: 3999-12-31 | F66: 23
B67: Bob Pritchard | C67: Subdivision Officer | D67: 2015-07-01 | E67: 3999-12-31 | F67: 42
B68: Bogdan Balliu-Bottesch | C68: Opus Experienced | D68: 2015-07-01 | E68: 3999-12-31 | F68: 25
B69: Bonnie Caesar | C69: Building Administrator | D69: 2015-07-01 | E69: 3999-12-31 | F69: 59
B70: Brenda Carter | C70: Snr BCO/Specialists | D70: 2015-07-01 | E70: 3999-12-31 | F70: 4
B71: Brendon Guyton | C71: Watkins | D71: 2015-07-01 | E71: 2017-01-25 | F71: 28
B72: Brendon Guyton | C72: Focus Consultancy | D72: 2017-01-26 | E72: 3999-12-31 | F72: 70
B73: Brent Watkins | C73: Watkins | D73: 2015-07-01 | E73: 2017-01-25 | F73: 28
B74: Brent Watkins | C74: Inspector (DSC Group) | D74: 2017-01-26 | E74: 3999-12-31 | F74: 74
B75: Brian Norton | C75: Snr BCO/Specialists | D75: 2015-07-01 | E75: 2017-07-25 | F75: 4
B76: Brian Wilson | C76: Senior Buidling Officer (BWOF) | D76: 2015-07-01 | E76: 3999-12-31 | F76: 80
B77: Bridget Crouch (nee Rowe) | C77: Building Administrator | D77: 2016-04-26 | E77: 2016-08-21 | F77: 59
B78: Bridget Crouch (nee Rowe) | C78: BCO 1 | D78: 2016-08-22 | E78: 2017-06-30 | F78: 1
B79: Bridget Crouch (nee Rowe) | C79: Vetting & Allocation | D79: 2017-07-01 | E79: 3999-12-31 | F79: 81
B80: Bridget Rowe | C80: Building Administrator | D80: 2015-07-01 | E80: 2016-04-25 | F80: 59
B81: Brittany Bradley Cane | C81: Planner 2/3 | D81: 2015-07-01 | E81: 3999-12-31 | F81: 37
B82: Bruce Craig | C82: PBO/Specialist Engineer | D82: 2015-07-01 | E82: 3999-12-31 | F82: 5
B83: Bruce Lyon | C83: Building Administrator | D83: 2015-07-01 | E83: 3999-12-31 | F83: 59
B84: Bryan McKay | C84: Snr BCO/Specialists | D84: 2015-07-01 | E84: 3999-12-31 | F84: 4
B85: BTW | C85: BTW Structural | D85: 2015-07-01 | E85: 3999-12-31 | F85: 10
B86: Calibre Consulting Ltd | C86: Calibre Experienced | D86: 2015-07-01 | E86: 3999-12-31 | F86: 61
B87: Carlo Botha | C87: Planner 2/3 | D87: 2015-07-01 | E87: 3999-12-31 | F87: 37
B88: Catherine Elvidge | C88: Planner Snr/Subdivision Officer etc | D88: 2015-07-01 | E88: 3999-12-31 | F88: 38
B89: Catriona MacPherson | C89: Building Administrator | D89: 2015-07-01 | E89: 3999-12-31 | F89: 59
B90: Cecile Coll | C90: Ext Spec/Consult Experienced | D90: 2015-07-01 | E90: 3999-12-31 | F90: 29
B91: Charlotte Walsh | C91: Building Administrator | D91: 2015-07-01 | E91: 3999-12-31 | F91: 59
B92: Chen (Weng-Kei Chen) | C92: Roading input | D92: 2015-07-01 | E92: 3999-12-31 | F92: 48
B93: Chi Chi Wang | C93: GHD Intermediate | D93: 2015-07-01 | E93: 3999-12-31 | F93: 14
B94: Chloe Stewart | C94: Planner 2/3 | D94: 2015-07-01 | E94: 3999-12-31 | F94: 37
B95: Chris Beckham | C95: PBO/Specialist Engineer | D95: 2015-07-01 | E95: 3999-12-31 | F95: 5
B96: Chris Hewlett | C96: Planner Snr/Subdivision Officer etc | D96: 2015-07-01 | E96: 2016-02-15 | F96: 38
B97: Chris Hewlett | C97: Snr BCO/Specialists | D97: 2016-02-16 | E97: 2017-07-25 | F97: 4
B98: Chris van den Bosch | C98: Snr Engineer/Team manager | D98: 2015-07-01 | E98: 3999-12-31 | F98: 6
B99: City Certifiers | C99: City Certifiers | D99: 2015-07-01 | E99: 2016-04-30 | F99: 64
B100: City Certifiers | C100: City Certifiers | D100: 2016-05-01 | E100: 2017-01-25 | F100: 64
B101: City Certifiers | C101: City Certifiers | D101: 2017-01-26 | E101: 3999-12-31 | F101: 64
B102: Claire Barry | C102: Building Administrator | D102: 2015-07-01 | E102: 3999-12-31 | F102: 59
B103: Clare Revell | C103: Planner Snr/Subdivision Officer etc | D103: 2015-07-01 | E103: 3999-12-31 | F103: 38
B104: Claudia Stuart | C104: Building Administrator | D104: 2015-07-01 | E104: 2016-05-01 | F104: 59
B105: Claudia Stuart | C105: BCO 1 | D105: 2016-05-02 | E105: 2017-06-30 | F105: 1
B106: Claudia Stuart | C106: Vetting & Allocation | D106: 2017-07-01 | E106: 3999-12-31 | F106: 81
B107: Clement Maloney | C107: Opus Experienced | D107: 2015-07-01 | E107: 3999-12-31 | F107: 25
B108: Clive Anderson | C108: Golder Associate Expert | D108: 2015-07-01 | E108: 3999-12-31 | F108: 15
B109: Colleen Jones | C109: BCO 2 | D109: 2015-07-01 | E109: 3999-12-31 | F109: 2
B110: Craig Marshall | C110: Public Advice Officer | D110: 2015-07-01 | E110: 3999-12-31 | F110: 62
B111: Damien Singleton | C111: BCO 1 | D111: 2015-07-01 | E111: 3999-12-31 | F111: 1
B112: Daniel Pau | C112: Opus Graduate | D112: 2015-07-01 | E112: 3999-12-31 | F112: 27
B113: Danielle Yeoman (nee Bailey) | C113: Planner 2/3 | D113: 2015-07-01 | E113: 3999-12-31 | F113: 37
B114: Dannielle Heron | C114: Building Administrator | D114: 2015-07-01 | E114: 3999-12-31 | F114: 59
B115: Darryn Fenton | C115: BTW Structural | D115: 2015-07-01 | E115: 3999-12-31 | F115: 10
B116: Daryl Lim | C116: Drainage Site Audit 1 | D116: 2015-07-01 | E116: 3999-12-31 | F116: 50
B117: David Barry-Maculay | C117: Golder Associate Experienced | D117: 2015-07-01 | E117: 3999-12-31 | F117: 16
B118: David Hutt | C118: PBO/Specialist Engineer | D118: 2015-07-01 | E118: 3999-12-31 | F118: 5
B119: David Keohane | C119: Planner 2/3 | D119: 2015-07-01 | E119: 3999-12-31 | F119: 37
B120: David Lee | C120: GHD Expert | D120: 2015-07-01 | E120: 3999-12-31 | F120: 12
B121: David Mudu | C121: Calibre Experienced | D121: 2015-07-01 | E121: 3999-12-31 | F121: 61
B122: Debbie Laffey | C122: Planner 2/3 | D122: 2015-07-01 | E122: 3999-12-31 | F122: 37
B123: Donna Chapman | C123: BCO 2 | D123: 2017-07-01 | E123: 3999-12-31 | F123: 2
B124: Donna Cooper | C124: Snr Engineer/Team manager | D124: 2015-07-01 | E124: 3999-12-31 | F124: 6
B125: Donnick Mugusto | C125: Spiire Experienced | D125: 2015-07-01 | E125: 3999-12-31 | F125: 21
B126: Doru Hozias | C126: PBO/Specialist Engineer | D126: 2015-07-01 | E126: 3999-12-31 | F126: 5
B127: DSC Group | C127: DSC Group | D127: 2016-09-01 | E127: 2017-01-25 | F127: 73
B128: DSC Group | C128: DSC Group | D128: 2017-01-26 | E128: 3999-12-31 | F128: 73
B129: Dylan Hunt | C129: Greenspace | D129: 2015-07-01 | E129: 3999-12-31 | F129: 49
B130: Ed Nystad | C130: PBO/Specialist Engineer | D130: 2015-07-01 | E130: 3999-12-31 | F130: 5
B131: Eddie Newman | C131: BCO 3 | D131: 2015-07-01 | E131: 3999-12-31 | F131: 3
B132: Elizabeth Alexander | C132: BCO 1 | D132: 2015-07-01 | E132: 3999-12-31 | F132: 1
B133: Elizabeth Reeves | C133: BCO 1 | D133: 2015-07-01 | E133: 2016-09-22 | F133: 1
B134: Elizabeth Reeves | C134: DSC Group | D134: 2016-09-23 | E134: 2017-01-25 | F134: 73
B135: Elizabeth Reeves | C135: Inspector (DSC Group) | D135: 2017-01-26 | E135: 3999-12-31 | F135: 74
B136: Ellen Worthington | C136: Planning Engineer | D136: 2015-07-01 | E136: 2017-07-25 | F136: 66
B137: Emma Chapman | C137: Planner 2/3 | D137: 2015-07-01 | E137: 3999-12-31 | F137: 37
B138: Emma Taylor | C138: Planner Snr/Subdivision Officer etc | D138: 2015-07-01 | E138: 3999-12-31 | F138: 38
B139: Eria Metcalf | C139: Planner Snr/Subdivision Officer etc | D139: 2015-07-01 | E139: 3999-12-31 | F139: 38
B140: Erik Kunkel | C140: Opus Experienced | D140: 2015-07-01 | E140: 3999-12-31 | F140: 25
B141: Faye Arona | C141: Building Administrator | D141: 2015-07-01 | E141: 3999-12-31 | F141: 59
B142: Florian Risse | C142: Planner 2/3 | D142: 2015-07-01 | E142: 3999-12-31 | F142: 37
B143: Focus Consultancy | C143: Focus Consultancy | D143: 2015-07-01 | E143: 2017-01-25 | F143: 70
B144: Focus Consultancy | C144: Focus Consultancy | D144: 2017-01-26 | E144: 3999-12-31 | F144: 70
B145: Fons van Wamal | C145: BCO 2 | D145: 2015-07-01 | E145: 3999-12-31 | F145: 2
B146: Frank Wood | C146: Inspector (DSC Group) | D146: 2015-07-01 | E146: 2017-01-25 | F146: 74
B147: Frank Wood | C147: Inspector (DSC Group) | D147: 2017-01-26 | E147: 3999-12-31 | F147: 74
B148: Freya Barnard | C148: Building Administrator | D148: 2017-07-01 | E148: 3999-12-31 | F148: 59
B149: Gabrielle George | C149: Building Administrator | D149: 2015-07-01 | E149: 3999-12-31 | F149: 59
B150: Gavin Bailey | C150: BCO 1 | D150: 2015-07-01 | E150: 3999-12-31 | F150: 1
B151: George Enersen | C151: Planner 2/3 | D151: 2015-07-01 | E151: 3999-12-31 | F151: 37
B152: Georgia Brown | C152: Planner 2/3 | D152: 2015-07-01 | E152: 3999-12-31 | F152: 37
B153: Gina Sharp | C153: Building Administrator | D153: 2015-07-01 | E153: 3999-12-31 | F153: 59
B154: Gordon Taylor | C154: Drainage Site Audit 3 | D154: 2015-07-01 | E154: 3999-12-31 | F154: 52
B155: Grace Mitchell | C155: Vetting & Allocation | D155: 2015-07-01 | E155: 3999-12-31 | F155: 81
B156: Graham Brown | C156: Opus Experienced | D156: 2015-07-01 | E156: 3999-12-31 | F156: 25
B157: Graham Erikson | C157: Snr BCO/Specialists | D157: 2015-07-01 | E157: 3999-12-31 | F157: 4
B158: Graham Mcllory | C158: Snr BCO/Specialists | D158: 2015-07-01 | E158: 3999-12-31 | F158: 4
B159: Gray Packer | C159: BCO 2 | D159: 2015-07-01 | E159: 3999-12-31 | F159: 2
B160: Greg Paterson | C160: BCO 2 | D160: 2015-07-01 | E160: 2016-04-10 | F160: 2
B161: Greg Paterson | C161: BCO 3 | D161: 2016-04-11 | E161: 3999-12-31 | F161: 3
B162: Greg Sutherland | C162: PBO/Specialist Engineer | D162: 2015-07-01 | E162: 3999-12-31 | F162: 5
B163: Donna Grice | C163: Snr Engineer/Team manager | D163: 2015-07-01 | E163: 3999-12-31 | F163: 6
B164: Hamish Cocks | C164: BCO 2 | D164: 2015-07-01 | E164: 2016-04-10 | F164: 2
B165: Hamish Cocks | C165: BCO 3 | D165: 2016-04-11 | E165: 3999-12-31 | F165: 3
B166: Hanish Aroa | C166: Opus Intermediate | D166: 2015-07-01 | E166: 3999-12-31 | F166: 26
B167: Heath Wells | C167: PBO/Specialist Engineer | D167: 2015-07-01 | E167: 3999-12-31 | F167: 5
B168: Helen Bealey | C168: Planner 2/3 | D168: 2015-07-01 | E168: 3999-12-31 | F168: 37
B169: Helene Kirpensteijn | C169: Planner 2/3 | D169: 2015-07-28 | E169: 3999-12-31 | F169: 37
B170: Hermione Blair | C170: Planner 2/3 | D170: 2015-07-01 | E170: 3999-12-31 | F170: 37
B171: Holly Gardiner | C171: Planner 2/3 | D171: 2015-07-01 | E171: 3999-12-31 | F171: 37
B172: Holly Luzak | C172: Building Administrator | D172: 2015-07-01 | E172: 3999-12-31 | F172: 59
B173: Holmes Fire Expert | C173: Holmes Fire Expert | D173: 2015-07-01 | E173: 3999-12-31 | F173: 18
B174: Holmes Fire Experienced | C174: Holmes Fire Experienced | D174: 2015-07-01 | E174: 3999-12-31 | F174: 19
B175: Huw Parker | C175: Ext Spec/Consult Experienced | D175: 2015-07-01 | E175: 3999-12-31 | F175: 29
B176: Ian Carstens | C176: Planner 2/3 | D176: 2015-07-01 | E176: 3999-12-31 | F176: 37
B177: Ian Craig | C177: Drainage Site Audit 2 | D177: 2015-07-01 | E177: 3999-12-31 | F177: 51
B178: Iris Brookland | C178: Snr BCO/Specialists | D178: 2015-07-01 | E178: 2017-07-25 | F178: 4
B179: Ian Burford | C179: Snr Engineer/Team manager | D179: 2015-07-01 | E179: 3999-12-31 | F179: 6
B180: Ian Johnson | C180: Water Supply Plan 1 | D180: 2015-07-01 | E180: 2017-07-25 | F180: 53
B181: Isobel Garland | C181: BCO 1 | D181: 2017-07-01 | E181: 3999-12-31 | F181: 1
B182: Isobel Stout | C182: Snr BCO/Specialists | D182: 2015-07-01 | E182: 3999-12-31 | F182: 4
B183: James Dismuke | C183: Golder Associate Experienced | D183: 2015-07-01 | E183: 3999-12-31 | F183: 67
B184: James Kwon | C184: Snr BCO/Specialists | D184: 2015-07-01 | E184: 3999-12-31 | F184: 4
B185: James Marsh | C185: BCO 3 | D185: 2015-07-01 | E185: 3999-12-31 | F185: 3
B186: Jan Bochow | C186: PBO/Specialist Engineer | D186: 2017-07-01 | E186: 3999-12-31 | F186: 5
B187: Jan Steenkamp | C187: Planner 2/3 | D187: 2015-07-01 | E187: 3999-12-31 | F187: 37
B188: Jason Dean | C188: Snr BCO/Specialists | D188: 2015-07-01 | E188: 3999-12-31 | F188: 4
B189: Jason Roberts | C189: Legal Services | D189: 2015-07-01 | E189: 3999-12-31 | F189: 58
B190: Jeck Icaro | C190: BTW Structural | D190: 2015-07-01 | E190: 3999-12-31 | F190: 10
B191: Jeffrey XU | C191: GHD Intermediate | D191: 2015-07-01 | E191: 3999-12-31 | F191: 14
B192: Jennifer Clarke | C192: Snr BCO/Specialists | D192: 2015-07-01 | E192: 3999-12-31 | F192: 4
B193: Jennifer van Heerden | C193: BCO 2 | D193: 2015-07-01 | E193: 3999-12-31 | F193: 2
B194: Jeremy Chang | C194: Holmes Fire Experienced | D194: 2015-07-01 | E194: 3999-12-31 | F194: 19
B195: Jessica Manhire | C195: Planning Technician | D195: 2015-07-01 | E195: 3999-12-31 | F195: 63
B196: Jessy Roberts | C196: Public Advice Officer | D196: 2015-07-01 | E196: 3999-12-31 | F196: 62
B197: Jill Ryan | C197: BCO 3 | D197: 2015-07-01 | E197: 2016-04-10 | F197: 3
B198: Jill Ryan | C198: Snr BCO/Specialists | D198: 2016-04-11 | E198: 3999-12-31 | F198: 4
B199: Jim Nguyen | C199: BCO 2 | D199: 2015-07-01 | E199: 2016-04-10 | F199: 2
B200: Jim Nguyen | C200: BCO 3 | D200: 2016-04-11 | E200: 3999-12-31 | F200: 3
B201: Jim Thompson | C201: Spiire Intermediate | D201: 2015-07-01 | E201: 3999-12-31 | F201: 22
... 216 more rows

Sheet DedupedNames (hidden)
A1: Please Select
A2: Aaron Edwards
A3: Aaron Harrison
A4: Aaron Haymes
A5: Abdul Musif
A6: Adam Modica
A7: Adam Wang
A8: Adelina Pop
A9: Adrian Cosby
A10: Adrienne Slattery
A11: Agnes van der Erf
A12: Al Wilson
A13: Alan Wilson
A14: Alie Nieuwenhuize
A15: Alison Thompson
A16: Alistair Sharp
A17: Allen Pranesh
A18: Amarana Furminger
A19: Amber Watson
A20: Amon Brown
A21: Amy Barney
A22: Amy Clark
A23: Amy Doherty
A24: Amy Law
A25: Amy Maxwell
A26: Ana de Jong
A27: Andre Winkelman
A28: Andrei Cotiga
A29: Andrew Dimock
A30: Andrew Eames
A31: Andrew Smith
A32: Andrew Stewart
A33: Andy Lee
A34: Angela O'Reilly
A35: Anne Edwards
A36: Aradhna Dutt
A37: Atheel Allos
A38: Aurecon Expert
A39: Aurecon Experienced
A40: Avau Tito
A41: Azeema Aman
A42: Banny Singh
A43: Barbara Thomas
A44: Barbara Tomlinson
A45: Barry Hemming
A46: Bee Geok Chan
A47: Ben Healy
A48: Bill Dray
A49: Bill Harrington
A50: Biswadeep Ghosh
A51: Bob Pritchard
A52: Bogdan Balliu-Bottesch
A53: Bonnie Caesar
A54: Brenda Carter
A55: Brendon Guyton
A56: Brent Watkins
A57: Brian Norton
A58: Brian Wilson
A59: Bridget Crouch (nee Rowe)
A60: Bridget Rowe
A61: Brittany Bradley Cane
A62: Bruce Craig
A63: Bruce Lyon
A64: Bryan McKay
A65: BTW
A66: Calibre Consulting Ltd
A67: Carlo Botha
A68: Catherine Elvidge
A69: Catriona MacPherson
A70: Cecile Coll
A71: Charlotte Walsh
A72: Chen (Weng-Kei Chen)
A73: Chi Chi Wang
A74: Chloe Stewart
A75: Chris Beckham
A76: Chris Hewlett
A77: Chris van den Bosch
A78: City Certifiers
A79: Claire Barry
A80: Clare Revell
A81: Claudia Stuart
A82: Clement Maloney
A83: Clive Anderson
A84: Colleen Jones
A85: Craig Marshall
A86: Damien Singleton
A87: Daniel Pau
A88: Danielle Yeoman (nee Bailey)
A89: Dannielle Heron
A90: Darryn Fenton
A91: Daryl Lim
A92: David Barry-Maculay
A93: David Hutt
A94: David Keohane
A95: David Lee
A96: David Mudu
A97: Debbie Laffey
A98: Donna Chapman
A99: Donna Cooper
A100: Donnick Mugusto
A101: Doru Hozias
A102: DSC Group
A103: Dylan Hunt
A104: Ed Nystad
A105: Eddie Newman
A106: Elizabeth Alexander
A107: Elizabeth Reeves
A108: Ellen Worthington
A109: Emma Chapman
A110: Emma Taylor
A111: Eria Metcalf
A112: Erik Kunkel
A113: Faye Arona
A114: Florian Risse
A115: Focus Consultancy
A116: Fons van Wamal
A117: Frank Wood
A118: Freya Barnard
A119: Gabrielle George
A120: Gavin Bailey
A121: George Enersen
A122: Georgia Brown
A123: Gina Sharp
A124: Gordon Taylor
A125: Grace Mitchell
A126: Graham Brown
A127: Graham Erikson
A128: Graham Mcllory
A129: Gray Packer
A130: Greg Paterson
A131: Greg Sutherland
A132: Donna Grice
A133: Hamish Cocks
A134: Hanish Aroa
A135: Heath Wells
A136: Helen Bealey
A137: Helene Kirpensteijn
A138: Hermione Blair
A139: Holly Gardiner
A140: Holly Luzak
A141: Holmes Fire Expert
A142: Holmes Fire Experienced
A143: Huw Parker
A144: Ian Carstens
A145: Ian Craig
A146: Iris Brookland
A147: Ian Burford
A148: Ian Johnson
A149: Isobel Garland
A150: Isobel Stout
A151: James Dismuke
A152: James Kwon
A153: James Marsh
A154: Jan Bochow
A155: Jan Steenkamp
A156: Jason Dean
A157: Jason Roberts
A158: Jeck Icaro
A159: Jeffrey XU
A160: Jennifer Clarke
A161: Jennifer van Heerden
A162: Jeremy Chang
A163: Jessica Manhire
A164: Jessy Roberts
A165: Jill Ryan
A166: Jim Nguyen
A167: Jim Thompson
A168: Jo McAfee
A169: Jo Rayne
A170: Johan Dalkie
A171: John Blackwell
A172: John Gibson
A173: John Hargraves
A174: John Higgins
A175: John James
A176: John Richards
A177: John Thornton
A178: Jonathan Nyman
A179: Joel Bensing
A180: Jolene Anderson
A181: Jon King
A182: Judy Benyon
A183: Julie Hand
A184: Julie Villard
A185: Karen Fitzpatrick
A186: Kate Askew
A187: Kate Biddlecombe
A188: Kate Graham
A189: Katherina Woodlock
A190: Katherine Hall
A191: Katherine Riley
A192: Kathryn Stapleton
A193: Kathy McTigue
A194: Calvin Hock
A195: Kent Wilson
A196: Kerry Magnuson
A197: Kevin Maher
A198: Kelvin Lim
A199: Kelvin Newman
A200: Kevin Williams
... 153 more rows

Sheet Role Fee Structure (hidden)
B2: Role | C2: Role Value2 | D2: Effective Start Date | E2: Effective End Date | F2: 2016 | G2: 2017 | H2: 2018 | I2: F8 | J2: F9 | K2: F10 | L2: F11 | M2: F12 | N2: F13 | O2: F14 | P2: F15 | Q2: F16 | R2: F17 | S2: F18 | T2: F19 | U2: F20 | V2: F21 | W2: F22 | X2: F23 | Y2: F24 | Z2: F25 | AA2: F26 | AB2: F27
B3: Please Select | F3: 0 | G3: 0 | H3: 0
B4: BCO 1 | C4: 1 | D4: 2015-07-01 | E4: 3999-12-31 | F4: 173 | G4: 173 | H4: 210 | AA4: Num Dates | AB4: 3
B5: BCO 2 | C5: 2 | D5: 2015-07-01 | E5: 3999-12-31 | F5: 200 | G5: 200 | H5: 210 | AA5: Num Rows | AB5: 82
B6: BCO 3 | C6: 3 | D6: 2015-07-01 | E6: 3999-12-31 | F6: 220 | G6: 220 | H6: 210
B7: Snr BCO/Specialists | C7: 4 | D7: 2015-07-01 | E7: 3999-12-31 | F7: 236 | G7: 236 | H7: 243
B8: PBO/Specialist Engineer | C8: 5 | D8: 2015-07-01 | E8: 3999-12-31 | F8: 273 | G8: 273 | H8: 275
B9: Snr Engineer/Team Manager | C9: 6 | D9: 2015-07-01 | E9: 3999-12-31 | F9: 294 | G9: 294 | H9: 294
B10: Ext Spec/Consult Expert | C10: 7 | D10: 2015-07-01 | E10: 3999-12-31 | F10: 0 | G10: 0 | H10: 0
B11: Aurecon Expert | C11: 8 | D11: 2015-07-01 | E11: 3999-12-31 | F11: 330 | G11: 330 | H11: 330
B12: Aurecon Experienced | C12: 9 | D12: 2015-07-01 | E12: 3999-12-31 | F12: 265 | G12: 265 | H12: 265
B13: BTW Structural | C13: 10 | D13: 2015-07-01 | E13: 3999-12-31 | F13: 225 | G13: 225 | H13: 225
B14: DSC Group | C14: 73 | D14: 2016-09-01 | E14: 2017-01-25 | F14: 157.55 | G14: 157.55 | H14: 157.55
B15: DSC Group | C15: 73 | D15: 2017-01-26 | E15: 3999-12-31 | F15: 200 | G15: 200 | H15: 210
B16: Fire Matters | C16: 11 | D16: 2015-07-01 | E16: 3999-12-31 | F16: 235 | G16: 235 | H16: 235
B17: GHD Expert | C17: 12 | D17: 2015-07-01 | E17: 3999-12-31 | F17: 260 | G17: 260 | H17: 260
B18: GHD Experienced | C18: 13 | D18: 2015-07-01 | E18: 3999-12-31 | F18: 220 | G18: 220 | H18: 220
B19: GHD Intermediate | C19: 14 | D19: 2015-07-01 | E19: 3999-12-31 | F19: 185 | G19: 185 | H19: 185
B20: Golder Associate Expert | C20: 15 | D20: 2015-07-01 | E20: 3999-12-31 | F20: 375 | G20: 375 | H20: 375
B21: Golder Associate Experienced | C21: 16 | D21: 2015-07-01 | E21: 3999-12-31 | F21: 265 | G21: 265 | H21: 265
B22: Golder Associate Intermediate | C22: 17 | D22: 2015-07-01 | E22: 3999-12-31 | F22: 230 | G22: 230 | H22: 230
B23: Holmes Fire Expert | C23: 18 | D23: 2015-07-01 | E23: 3999-12-31 | F23: 305 | G23: 305 | H23: 305
B24: Holmes Fire Experienced | C24: 19 | D24: 2015-07-01 | E24: 3999-12-31 | F24: 295 | G24: 295 | H24: 295
B25: Spiire Expert | C25: 20 | D25: 2015-07-01 | E25: 3999-12-31 | F25: 0 | G25: 0 | H25: 0
B26: Spiire Experienced | C26: 21 | D26: 2015-07-01 | E26: 3999-12-31 | F26: 235 | G26: 235 | H26: 235
B27: Spiire Intermediate | C27: 22 | D27: 2015-07-01 | E27: 3999-12-31 | F27: 210 | G27: 210 | H27: 210
B28: WSP | C28: 23 | D28: 2015-07-01 | E28: 3999-12-31 | F28: 250 | G28: 250 | H28: 250
B29: Fire Review Solutions | C29: 24 | D29: 2015-07-01 | E29: 3999-12-31 | F29: 235 | G29: 235 | H29: 235
B30: Opus Experienced | C30: 25 | D30: 2015-07-01 | E30: 3999-12-31 | F30: 265 | G30: 265 | H30: 265
B31: Opus Intermediate | C31: 26 | D31: 2015-07-01 | E31: 3999-12-31 | F31: 205 | G31: 205 | H31: 205
B32: Opus Graduate | C32: 27 | D32: 2015-07-01 | E32: 3999-12-31 | F32: 200 | G32: 200 | H32: 200
B33: Watkins | C33: 28 | D33: 2015-07-01 | E33: 2016-08-25 | F33: 149.5 | G33: 149.5 | H33: 149.5
B34: Watkins | C34: 28 | D34: 2016-08-26 | E34: 3999-12-31 | F34: 157.55 | G34: 157.55 | H34: 157.55
B35: Ext Spec/Consult Experienced | C35: 29 | D35: 2015-07-01 | E35: 3999-12-31 | F35: 265 | G35: 265 | H35: 265
B36: Building Inspection Coord | C36: 30 | D36: 2015-07-01 | E36: 3999-12-31 | F36: 115 | G36: 115 | H36: 120
B37: Inspector 1 | C37: 31 | D37: 2015-07-01 | E37: 3999-12-31 | F37: 173 | G37: 173 | H37: 210
B38: Inspector 2 | C38: 32 | D38: 2015-07-01 | E38: 3999-12-31 | F38: 200 | G38: 200 | H38: 210
B39: Inspector 3 | C39: 33 | D39: 2015-07-01 | E39: 3999-12-31 | F39: 220 | G39: 220 | H39: 210
B40: Specialist Task Facilitator | C40: 34 | D40: 2015-07-01 | E40: 3999-12-31 | F40: 173 | G40: 173 | H40: 178
B41: Team Manager | C41: 35 | D41: 2015-07-01 | E41: 3999-12-31 | F41: 294 | G41: 294 | H41: 294
B42: Planner Admin | C42: 36 | D42: 2015-07-01 | E42: 3999-12-31 | F42: 100 | G42: 100 | H42: 105
B43: Planner 2/3 | C43: 37 | D43: 2015-07-01 | E43: 3999-12-31 | F43: 180 | G43: 180 | H43: 185
B44: Planner Snr/Subdivision Officer etc | C44: 38 | D44: 2015-07-01 | E44: 3999-12-31 | F44: 200 | G44: 200 | H44: 200
B45: Internal Spec - Jnr/Int | C45: 39 | D45: 2015-07-01 | E45: 3999-12-31 | F45: 180 | G45: 180 | H45: 185
B46: Internal Spec - Snr | C46: 40 | D46: 2015-07-01 | E46: 3999-12-31 | F46: 200 | G46: 200 | H46: 205
B47: Subdivision Advisory | C47: 41 | D47: 2015-07-01 | E47: 3999-12-31 | F47: 200 | G47: 200 | H47: 200
B48: Subdivision Officer | C48: 42 | D48: 2015-07-01 | E48: 3999-12-31 | F48: 200 | G48: 200 | H48: 200
B49: Subdivision Engineer | C49: 43 | D49: 2015-07-01 | E49: 3999-12-31 | F49: 200 | G49: 200 | H49: 200
B50: Fire & Civil Eng Input | C50: 44 | D50: 2015-07-01 | E50: 3999-12-31 | F50: 200 | G50: 200 | H50: 200
B51: Stormwater Eng | C51: 45 | D51: 2015-07-01 | E51: 3999-12-31 | F51: 200 | G51: 200 | H51: 200
B52: Arborist/Tree protection | C52: 46 | D52: 2015-07-01 | E52: 3999-12-31 | F52: 180 | G52: 180 | H52: 180
B53: EHO (NES input) | C53: 47 | D53: 2015-07-01 | E53: 3999-12-31 | F53: 200 | G53: 200 | H53: 200
B54: Roading input | C54: 48 | D54: 2015-07-01 | E54: 3999-12-31 | F54: 200 | G54: 200 | H54: 200
B55: Greenspace | C55: 49 | D55: 2015-07-01 | E55: 3999-12-31 | F55: 225 | G55: 225 | H55: 225
B56: Drainage Site Audit 1 | C56: 50 | D56: 2015-07-01 | E56: 3999-12-31 | F56: 200 | G56: 200 | H56: 200
B57: Drainage Site Audit 2 | C57: 51 | D57: 2015-07-01 | E57: 3999-12-31 | F57: 150 | G57: 150 | H57: 150
B58: Drainage Site Audit 3 | C58: 52 | D58: 2015-07-01 | E58: 3999-12-31 | F58: 180 | G58: 180 | H58: 180
B59: Water Supply Plan 1 | C59: 53 | D59: 2015-07-01 | E59: 3999-12-31 | F59: 180 | G59: 180 | H59: 180
B60: Water Supply Plan Tec 2 | C60: 54 | D60: 2015-07-01 | E60: 3999-12-31 | F60: 150 | G60: 150 | H60: 150
B61: Water Supply Audit/Clearance | C61: 55 | D61: 2015-07-01 | E61: 3999-12-31 | F61: 200 | G61: 200 | H61: 200
B62: As Built Info | C62: 56 | D62: 2015-07-01 | E62: 3999-12-31 | F62: 180 | G62: 180 | H62: 180
B63: Pumping Station Clearances | C63: 57 | D63: 2015-07-01 | E63: 3999-12-31 | F63: 180 | G63: 180 | H63: 180
B64: Legal Services | C64: 58 | D64: 2015-07-01 | E64: 3999-12-31 | F64: 200 | G64: 200 | H64: 200
B65: Building Administrator | C65: 59 | D65: 2015-07-01 | E65: 3999-12-31 | F65: 115 | G65: 115 | H65: 120
B66: Other | C66: 60 | D66: 2015-07-01 | E66: 3999-12-31 | F66: 0 | G66: 0 | H66: 0
B67: Inspector (DSC Group) | C67: 74 | D67: 2015-07-01 | E67: 2017-01-25 | F67: 178.25 | G67: 178.25 | H67: 178.25
B68: Inspector (DSC Group) | C68: 74 | D68: 2017-01-26 | E68: 3999-12-31 | F68: 200 | G68: 200 | H68: 200
B69: Calibre Experienced | C69: 61 | D69: 2015-07-01 | E69: 3999-12-31 | F69: 235 | G69: 235 | H69: 235
B70: Public Advice Officer | C70: 62 | D70: 2015-07-01 | E70: 3999-12-31 | F70: 115 | G70: 115 | H70: 120
B71: Planning Technician | C71: 63 | D71: 2015-07-01 | E71: 3999-12-31 | F71: 150 | G71: 150 | H71: 155
B72: City Certifiers | C72: 64 | D72: 2015-07-01 | E72: 2016-04-30 | F72: 149.5 | G72: 149.5 | H72: 149.5
B73: City Certifiers | C73: 64 | D73: 2016-05-01 | E73: 2017-01-25 | F73: 172.5 | G73: 172.5 | H73: 172.5
B74: City Certifiers | C74: 64 | D74: 2017-01-26 | E74: 3999-12-31 | F74: 200 | G74: 200 | H74: 210
B75: Planning Engineer | C75: 66 | D75: 2015-07-01 | E75: 3999-12-31 | F75: 236 | G75: 236 | H75: 236
B76: Golder Associate Experienced+ | C76: 67 | D76: 2015-07-01 | E76: 3999-12-31 | F76: 315 | G76: 315 | H76: 315
B77: Beca Fire Engineering | C77: 68 | D77: 2015-07-01 | E77: 3999-12-31 | F77: 265 | G77: 265 | H77: 265
B78: David Ogilvie | C78: 69 | D78: 2015-07-01 | E78: 3999-12-31 | F78: 215 | G78: 215 | H78: 215
B79: Focus Consultancy | C79: 70 | D79: 2015-07-01 | E79: 2017-01-25 | F79: 149.5 | G79: 149.5 | H79: 149.5
B80: Focus Consultancy | C80: 70 | D80: 2017-01-26 | E80: 3999-12-31 | F80: 200 | G80: 200 | H80: 210
B81: PBC | C81: 78 | D81: 2015-07-01 | E81: 3999-12-31 | F81: 200 | G81: 200 | H81: 210
B82: Building Officers (BWOF) | C82: 79 | D82: 2015-07-01 | E82: 3999-12-31 | F82: 173 | G82: 173 | H82: 178
B83: Senior Buidling Officer (BWOF) | C83: 80 | D83: 2015-07-01 | E83: 3999-12-31 | F83: 220 | G83: 220 | H83: 243
B84: Vetting & Allocation | C84: 81 | D84: 2015-07-01 | E84: 3999-12-31 | F84: 173 | G84: 173 | H84: 178
B85: do not select | C85: 90 | D85: 2015-07-01 | E85: 3999-12-31 | F85: 0 | G85: 0 | H85: 0
